{"text_format":"3","workbook":"xlsx","n_sheets":1,"sheets":["Mileage Log"],"not_rendered":{"images":1,"defined_names":1},"read":"whole","date_system":"1900"}

{"sheet":"Mileage Log","index":0,"n_rows":500,"n_cols":8,"rows_kept":500,"merged":[[0,0,0,7]]}
["Mileage Log"]
[null,"Current Mileage Rate:",{"v":0.56,"d":"$0.56"},"Total Mileage/Expense:",{"$f":"SUM(E4:E2000)","v":{"v":0,"d":"0.0"}},{"$f":"SUM(F4:F2000)","v":{"v":0,"d":"0.0"}},{"$f":"SUM(G4:G2000)","v":{"v":0,"d":"0.0"}},{"$f":"SUM(H4:H2000)","v":0}]
["Date","Client / Customer / Other","Business Purpose","Location / Address","Total Mileage","Personal Mileage","Business Mileage","Mileage Expense"]
[{"$nulls":6},{"$f":"Table1[[#This Row],[Total Mileage]]-Table1[[#This Row],[Personal Mileage]]","v":{"v":0,"d":"0.0"}},{"$f":"G4*$C$2","v":0}]
[{"$nulls":6},{"$f":"Table1[[#This Row],[Total Mileage]]-Table1[[#This Row],[Personal Mileage]]","v":{"v":0,"d":"0.0"}},0]
[{"$nulls":6},{"$f":"Table1[[#This Row],[Total Mileage]]-Table1[[#This Row],[Personal Mileage]]","v":{"v":0,"d":"0.0"}},0]
[{"$nulls":6},{"$f":"Table1[[#This Row],[Total Mileage]]-Table1[[#This Row],[Personal Mileage]]","v":{"v":0,"d":"0.0"}},0]
[{"$nulls":6},{"$f":"Table1[[#This Row],[Total Mileage]]-Table1[[#This Row],[Personal Mileage]]","v":{"v":0,"d":"0.0"}},0]
[{"$nulls":6},{"$f":"Table1[[#This Row],[Total Mileage]]-Table1[[#This Row],[Personal Mileage]]","v":{"v":0,"d":"0.0"}},0]
[{"$nulls":6},{"$f":"Table1[[#This Row],[Total Mileage]]-Table1[[#This Row],[Personal Mileage]]","v":{"v":0,"d":"0.0"}},0]
[{"$nulls":6},{"$f":"Table1[[#This Row],[Total Mileage]]-Table1[[#This Row],[Personal Mileage]]","v":{"v":0,"d":"0.0"}},0]
[{"$nulls":6},{"$f":"Table1[[#This Row],[Total Mileage]]-Table1[[#This Row],[Personal Mileage]]","v":{"v":0,"d":"0.0"}},0]
[{"$nulls":6},{"$f":"Table1[[#This Row],[Total Mileage]]-Table1[[#This Row],[Personal Mileage]]","v":{"v":0,"d":"0.0"}},0]
[{"$nulls":6},{"$f":"Table1[[#This Row],[Total Mileage]]-Table1[[#This Row],[Personal Mileage]]","v":{"v":0,"d":"0.0"}},0]
[{"$nulls":6},{"$f":"Table1[[#This Row],[Total Mileage]]-Table1[[#This Row],[Personal Mileage]]","v":{"v":0,"d":"0.0"}},0]
[{"$nulls":6},{"$f":"Table1[[#This Row],[Total Mileage]]-Table1[[#This Row],[Personal Mileage]]","v":{"v":0,"d":"0.0"}},0]
[{"$nulls":6},{"$f":"Table1[[#This Row],[Total Mileage]]-Table1[[#This Row],[Personal Mileage]]","v":{"v":0,"d":"0.0"}},0]
[{"$nulls":6},{"$f":"Table1[[#This Row],[Total Mileage]]-Table1[[#This Row],[Personal Mileage]]","v":{"v":0,"d":"0.0"}},0]
[{"$nulls":6},{"$f":"Table1[[#This Row],[Total Mileage]]-Table1[[#This Row],[Personal Mileage]]","v":{"v":0,"d":"0.0"}},0]
[{"$nulls":6},{"$f":"Table1[[#This Row],[Total Mileage]]-Table1[[#This Row],[Personal Mileage]]","v":{"v":0,"d":"0.0"}},0]
[{"$nulls":6},{"$f":"Table1[[#This Row],[Total Mileage]]-Table1[[#This Row],[Personal Mileage]]","v":{"v":0,"d":"0.0"}},0]
[{"$nulls":6},{"$f":"Table1[[#This Row],[Total Mileage]]-Table1[[#This Row],[Personal Mileage]]","v":{"v":0,"d":"0.0"}},0]
[{"$nulls":6},{"$f":"Table1[[#This Row],[Total Mileage]]-Table1[[#This Row],[Personal Mileage]]","v":{"v":0,"d":"0.0"}},0]
[{"$nulls":6},{"$f":"Table1[[#This Row],[Total Mileage]]-Table1[[#This Row],[Personal Mileage]]","v":{"v":0,"d":"0.0"}},0]
[{"$nulls":6},{"$f":"Table1[[#This Row],[Total Mileage]]-Table1[[#This Row],[Personal Mileage]]","v":{"v":0,"d":"0.0"}},0]
[{"$nulls":6},{"$f":"Table1[[#This Row],[Total Mileage]]-Table1[[#This Row],[Personal Mileage]]","v":{"v":0,"d":"0.0"}},0]
[{"$nulls":6},{"$f":"Table1[[#This Row],[Total Mileage]]-Table1[[#This Row],[Personal Mileage]]","v":{"v":0,"d":"0.0"}},0]
[{"$nulls":6},{"$f":"Table1[[#This Row],[Total Mileage]]-Table1[[#This Row],[Personal Mileage]]","v":{"v":0,"d":"0.0"}},0]
[{"$nulls":6},{"$f":"Table1[[#This Row],[Total Mileage]]-Table1[[#This Row],[Personal Mileage]]","v":{"v":0,"d":"0.0"}},0]
[{"$nulls":6},{"$f":"Table1[[#This Row],[Total Mileage]]-Table1[[#This Row],[Personal Mileage]]","v":{"v":0,"d":"0.0"}},0]
[{"$nulls":6},{"$f":"Table1[[#This Row],[Total Mileage]]-Table1[[#This Row],[Personal Mileage]]","v":{"v":0,"d":"0.0"}},0]
[{"$nulls":6},{"$f":"Table1[[#This Row],[Total Mileage]]-Table1[[#This Row],[Personal Mileage]]","v":{"v":0,"d":"0.0"}},0]
[{"$nulls":6},{"$f":"Table1[[#This Row],[Total Mileage]]-Table1[[#This Row],[Personal Mileage]]","v":{"v":0,"d":"0.0"}},0]
[{"$nulls":6},{"$f":"Table1[[#This Row],[Total Mileage]]-Table1[[#This Row],[Personal Mileage]]","v":{"v":0,"d":"0.0"}},0]
[{"$nulls":6},{"$f":"Table1[[#This Row],[Total Mileage]]-Table1[[#This Row],[Personal Mileage]]","v":{"v":0,"d":"0.0"}},0]
[{"$nulls":6},{"$f":"Table1[[#This Row],[Total Mileage]]-Table1[[#This Row],[Personal Mileage]]","v":{"v":0,"d":"0.0"}},0]
[{"$nulls":6},{"$f":"Table1[[#This Row],[Total Mileage]]-Table1[[#This Row],[Personal Mileage]]","v":{"v":0,"d":"0.0"}},0]
[{"$nulls":6},{"$f":"Table1[[#This Row],[Total Mileage]]-Table1[[#This Row],[Personal Mileage]]","v":{"v":0,"d":"0.0"}},0]
[{"$nulls":6},{"$f":"Table1[[#This Row],[Total Mileage]]-Table1[[#This Row],[Personal Mileage]]","v":{"v":0,"d":"0.0"}},0]
[{"$nulls":6},{"$f":"Table1[[#This Row],[Total Mileage]]-Table1[[#This Row],[Personal Mileage]]","v":{"v":0,"d":"0.0"}},0]
[{"$nulls":6},{"$f":"Table1[[#This Row],[Total Mileage]]-Table1[[#This Row],[Personal Mileage]]","v":{"v":0,"d":"0.0"}},0]
[{"$nulls":6},{"$f":"Table1[[#This Row],[Total Mileage]]-Table1[[#This Row],[Personal Mileage]]","v":{"v":0,"d":"0.0"}},0]
[{"$nulls":6},{"$f":"Table1[[#This Row],[Total Mileage]]-Table1[[#This Row],[Personal Mileage]]","v":{"v":0,"d":"0.0"}},0]
[{"$nulls":6},{"$f":"Table1[[#This Row],[Total Mileage]]-Table1[[#This Row],[Personal Mileage]]","v":{"v":0,"d":"0.0"}},0]
[{"$nulls":6},{"$f":"Table1[[#This Row],[Total Mileage]]-Table1[[#This Row],[Personal Mileage]]","v":{"v":0,"d":"0.0"}},0]
[{"$nulls":6},{"$f":"Table1[[#This Row],[Total Mileage]]-Table1[[#This Row],[Personal Mileage]]","v":{"v":0,"d":"0.0"}},0]
[{"$nulls":6},{"$f":"Table1[[#This Row],[Total Mileage]]-Table1[[#This Row],[Personal Mileage]]","v":{"v":0,"d":"0.0"}},0]
[{"$nulls":6},{"$f":"Table1[[#This Row],[Total Mileage]]-Table1[[#This Row],[Personal Mileage]]","v":{"v":0,"d":"0.0"}},0]
[{"$nulls":6},{"$f":"Table1[[#This Row],[Total Mileage]]-Table1[[#This Row],[Personal Mileage]]","v":{"v":0,"d":"0.0"}},0]
[{"$nulls":6},{"$f":"Table1[[#This Row],[Total Mileage]]-Table1[[#This Row],[Personal Mileage]]","v":{"v":0,"d":"0.0"}},0]
[{"$nulls":6},{"$f":"Table1[[#This Row],[Total Mileage]]-Table1[[#This Row],[Personal Mileage]]","v":{"v":0,"d":"0.0"}},0]
[{"$nulls":6},{"$f":"Table1[[#This Row],[Total Mileage]]-Table1[[#This Row],[Personal Mileage]]","v":{"v":0,"d":"0.0"}},0]
[{"$nulls":6},{"$f":"Table1[[#This Row],[Total Mileage]]-Table1[[#This Row],[Personal Mileage]]","v":{"v":0,"d":"0.0"}},0]
[{"$nulls":6},{"$f":"Table1[[#This Row],[Total Mileage]]-Table1[[#This Row],[Personal Mileage]]","v":{"v":0,"d":"0.0"}},0]
[{"$nulls":6},{"$f":"Table1[[#This Row],[Total Mileage]]-Table1[[#This Row],[Personal Mileage]]","v":{"v":0,"d":"0.0"}},0]
[{"$nulls":6},{"$f":"Table1[[#This Row],[Total Mileage]]-Table1[[#This Row],[Personal Mileage]]","v":{"v":0,"d":"0.0"}},0]
[{"$nulls":6},{"$f":"Table1[[#This Row],[Total Mileage]]-Table1[[#This Row],[Personal Mileage]]","v":{"v":0,"d":"0.0"}},0]
[{"$nulls":6},{"$f":"Table1[[#This Row],[Total Mileage]]-Table1[[#This Row],[Personal Mileage]]","v":{"v":0,"d":"0.0"}},0]
[{"$nulls":6},{"$f":"Table1[[#This Row],[Total Mileage]]-Table1[[#This Row],[Personal Mileage]]","v":{"v":0,"d":"0.0"}},0]
[{"$nulls":6},{"$f":"Table1[[#This Row],[Total Mileage]]-Table1[[#This Row],[Personal Mileage]]","v":{"v":0,"d":"0.0"}},0]
[{"$nulls":6},{"$f":"Table1[[#This Row],[Total Mileage]]-Table1[[#This Row],[Personal Mileage]]","v":{"v":0,"d":"0.0"}},0]
[{"$nulls":6},{"$f":"Table1[[#This Row],[Total Mileage]]-Table1[[#This Row],[Personal Mileage]]","v":{"v":0,"d":"0.0"}},0]
[{"$nulls":6},{"$f":"Table1[[#This Row],[Total Mileage]]-Table1[[#This Row],[Personal Mileage]]","v":{"v":0,"d":"0.0"}},0]
[{"$nulls":6},{"$f":"Table1[[#This Row],[Total Mileage]]-Table1[[#This Row],[Personal Mileage]]","v":{"v":0,"d":"0.0"}},0]
[{"$nulls":6},{"$f":"Table1[[#This Row],[Total Mileage]]-Table1[[#This Row],[Personal Mileage]]","v":{"v":0,"d":"0.0"}},0]
[{"$nulls":6},{"$f":"Table1[[#This Row],[Total Mileage]]-Table1[[#This Row],[Personal Mileage]]","v":{"v":0,"d":"0.0"}},0]
[{"$nulls":6},{"$f":"Table1[[#This Row],[Total Mileage]]-Table1[[#This Row],[Personal Mileage]]","v":{"v":0,"d":"0.0"}},0]
[{"$nulls":6},{"$f":"Table1[[#This Row],[Total Mileage]]-Table1[[#This Row],[Personal Mileage]]","v":{"v":0,"d":"0.0"}},{"$f":"G68*$C$2","v":0}]
[{"$nulls":6},{"$f":"Table1[[#This Row],[Total Mileage]]-Table1[[#This Row],[Personal Mileage]]","v":{"v":0,"d":"0.0"}},0]
[{"$nulls":6},{"$f":"Table1[[#This Row],[Total Mileage]]-Table1[[#This Row],[Personal Mileage]]","v":{"v":0,"d":"0.0"}},0]
[{"$nulls":6},{"$f":"Table1[[#This Row],[Total Mileage]]-Table1[[#This Row],[Personal Mileage]]","v":{"v":0,"d":"0.0"}},0]
[{"$nulls":6},{"$f":"Table1[[#This Row],[Total Mileage]]-Table1[[#This Row],[Personal Mileage]]","v":{"v":0,"d":"0.0"}},0]
[{"$nulls":6},{"$f":"Table1[[#This Row],[Total Mileage]]-Table1[[#This Row],[Personal Mileage]]","v":{"v":0,"d":"0.0"}},0]
[{"$nulls":6},{"$f":"Table1[[#This Row],[Total Mileage]]-Table1[[#This Row],[Personal Mileage]]","v":{"v":0,"d":"0.0"}},0]
[{"$nulls":6},{"$f":"Table1[[#This Row],[Total Mileage]]-Table1[[#This Row],[Personal Mileage]]","v":{"v":0,"d":"0.0"}},0]
[{"$nulls":6},{"$f":"Table1[[#This Row],[Total Mileage]]-Table1[[#This Row],[Personal Mileage]]","v":{"v":0,"d":"0.0"}},0]
[{"$nulls":6},{"$f":"Table1[[#This Row],[Total Mileage]]-Table1[[#This Row],[Personal Mileage]]","v":{"v":0,"d":"0.0"}},0]
[{"$nulls":6},{"$f":"Table1[[#This Row],[Total Mileage]]-Table1[[#This Row],[Personal Mileage]]","v":{"v":0,"d":"0.0"}},0]
[{"$nulls":6},{"$f":"Table1[[#This Row],[Total Mileage]]-Table1[[#This Row],[Personal Mileage]]","v":{"v":0,"d":"0.0"}},0]
[{"$nulls":6},{"$f":"Table1[[#This Row],[Total Mileage]]-Table1[[#This Row],[Personal Mileage]]","v":{"v":0,"d":"0.0"}},0]
[{"$nulls":6},{"$f":"Table1[[#This Row],[Total Mileage]]-Table1[[#This Row],[Personal Mileage]]","v":{"v":0,"d":"0.0"}},0]
[{"$nulls":6},{"$f":"Table1[[#This Row],[Total Mileage]]-Table1[[#This Row],[Personal Mileage]]","v":{"v":0,"d":"0.0"}},0]
[{"$nulls":6},{"$f":"Table1[[#This Row],[Total Mileage]]-Table1[[#This Row],[Personal Mileage]]","v":{"v":0,"d":"0.0"}},0]
[{"$nulls":6},{"$f":"Table1[[#This Row],[Total Mileage]]-Table1[[#This Row],[Personal Mileage]]","v":{"v":0,"d":"0.0"}},0]
[{"$nulls":6},{"$f":"Table1[[#This Row],[Total Mileage]]-Table1[[#This Row],[Personal Mileage]]","v":{"v":0,"d":"0.0"}},0]
[{"$nulls":6},{"$f":"Table1[[#This Row],[Total Mileage]]-Table1[[#This Row],[Personal Mileage]]","v":{"v":0,"d":"0.0"}},0]
[{"$nulls":6},{"$f":"Table1[[#This Row],[Total Mileage]]-Table1[[#This Row],[Personal Mileage]]","v":{"v":0,"d":"0.0"}},0]
[{"$nulls":6},{"$f":"Table1[[#This Row],[Total Mileage]]-Table1[[#This Row],[Personal Mileage]]","v":{"v":0,"d":"0.0"}},0]
[{"$nulls":6},{"$f":"Table1[[#This Row],[Total Mileage]]-Table1[[#This Row],[Personal Mileage]]","v":{"v":0,"d":"0.0"}},0]
[{"$nulls":6},{"$f":"Table1[[#This Row],[Total Mileage]]-Table1[[#This Row],[Personal Mileage]]","v":{"v":0,"d":"0.0"}},0]
[{"$nulls":6},{"$f":"Table1[[#This Row],[Total Mileage]]-Table1[[#This Row],[Personal Mileage]]","v":{"v":0,"d":"0.0"}},0]
[{"$nulls":6},{"$f":"Table1[[#This Row],[Total Mileage]]-Table1[[#This Row],[Personal Mileage]]","v":{"v":0,"d":"0.0"}},0]
[{"$nulls":6},{"$f":"Table1[[#This Row],[Total Mileage]]-Table1[[#This Row],[Personal Mileage]]","v":{"v":0,"d":"0.0"}},0]
[{"$nulls":6},{"$f":"Table1[[#This Row],[Total Mileage]]-Table1[[#This Row],[Personal Mileage]]","v":{"v":0,"d":"0.0"}},0]
[{"$nulls":6},{"$f":"Table1[[#This Row],[Total Mileage]]-Table1[[#This Row],[Personal Mileage]]","v":{"v":0,"d":"0.0"}},0]
[{"$nulls":6},{"$f":"Table1[[#This Row],[Total Mileage]]-Table1[[#This Row],[Personal Mileage]]","v":{"v":0,"d":"0.0"}},0]
[{"$nulls":6},{"$f":"Table1[[#This Row],[Total Mileage]]-Table1[[#This Row],[Personal Mileage]]","v":{"v":0,"d":"0.0"}},0]
[{"$nulls":6},{"$f":"Table1[[#This Row],[Total Mileage]]-Table1[[#This Row],[Personal Mileage]]","v":{"v":0,"d":"0.0"}},0]
[{"$nulls":6},{"$f":"Table1[[#This Row],[Total Mileage]]-Table1[[#This Row],[Personal Mileage]]","v":{"v":0,"d":"0.0"}},0]
[{"$nulls":6},{"$f":"Table1[[#This Row],[Total Mileage]]-Table1[[#This Row],[Personal Mileage]]","v":{"v":0,"d":"0.0"}},0]
[{"$nulls":6},{"$f":"Table1[[#This Row],[Total Mileage]]-Table1[[#This Row],[Personal Mileage]]","v":{"v":0,"d":"0.0"}},0]
[{"$nulls":6},{"$f":"Table1[[#This Row],[Total Mileage]]-Table1[[#This Row],[Personal Mileage]]","v":{"v":0,"d":"0.0"}},0]
[{"$nulls":6},{"$f":"Table1[[#This Row],[Total Mileage]]-Table1[[#This Row],[Personal Mileage]]","v":{"v":0,"d":"0.0"}},0]
[{"$nulls":6},{"$f":"Table1[[#This Row],[Total Mileage]]-Table1[[#This Row],[Personal Mileage]]","v":{"v":0,"d":"0.0"}},0]
[{"$nulls":6},{"$f":"Table1[[#This Row],[Total Mileage]]-Table1[[#This Row],[Personal Mileage]]","v":{"v":0,"d":"0.0"}},0]
[{"$nulls":6},{"$f":"Table1[[#This Row],[Total Mileage]]-Table1[[#This Row],[Personal Mileage]]","v":{"v":0,"d":"0.0"}},0]
[{"$nulls":6},{"$f":"Table1[[#This Row],[Total Mileage]]-Table1[[#This Row],[Personal Mileage]]","v":{"v":0,"d":"0.0"}},0]
[{"$nulls":6},{"$f":"Table1[[#This Row],[Total Mileage]]-Table1[[#This Row],[Personal Mileage]]","v":{"v":0,"d":"0.0"}},0]
[{"$nulls":6},{"$f":"Table1[[#This Row],[Total Mileage]]-Table1[[#This Row],[Personal Mileage]]","v":{"v":0,"d":"0.0"}},0]
[{"$nulls":6},{"$f":"Table1[[#This Row],[Total Mileage]]-Table1[[#This Row],[Personal Mileage]]","v":{"v":0,"d":"0.0"}},0]
[{"$nulls":6},{"$f":"Table1[[#This Row],[Total Mileage]]-Table1[[#This Row],[Personal Mileage]]","v":{"v":0,"d":"0.0"}},0]
[{"$nulls":6},{"$f":"Table1[[#This Row],[Total Mileage]]-Table1[[#This Row],[Personal Mileage]]","v":{"v":0,"d":"0.0"}},0]
[{"$nulls":6},{"$f":"Table1[[#This Row],[Total Mileage]]-Table1[[#This Row],[Personal Mileage]]","v":{"v":0,"d":"0.0"}},0]
[{"$nulls":6},{"$f":"Table1[[#This Row],[Total Mileage]]-Table1[[#This Row],[Personal Mileage]]","v":{"v":0,"d":"0.0"}},0]
[{"$nulls":6},{"$f":"Table1[[#This Row],[Total Mileage]]-Table1[[#This Row],[Personal Mileage]]","v":{"v":0,"d":"0.0"}},0]
[{"$nulls":6},{"$f":"Table1[[#This Row],[Total Mileage]]-Table1[[#This Row],[Personal Mileage]]","v":{"v":0,"d":"0.0"}},0]
[{"$nulls":6},{"$f":"Table1[[#This Row],[Total Mileage]]-Table1[[#This Row],[Personal Mileage]]","v":{"v":0,"d":"0.0"}},0]
[{"$nulls":6},{"$f":"Table1[[#This Row],[Total Mileage]]-Table1[[#This Row],[Personal Mileage]]","v":{"v":0,"d":"0.0"}},0]
[{"$nulls":6},{"$f":"Table1[[#This Row],[Total Mileage]]-Table1[[#This Row],[Personal Mileage]]","v":{"v":0,"d":"0.0"}},0]
[{"$nulls":6},{"$f":"Table1[[#This Row],[Total Mileage]]-Table1[[#This Row],[Personal Mileage]]","v":{"v":0,"d":"0.0"}},0]
[{"$nulls":6},{"$f":"Table1[[#This Row],[Total Mileage]]-Table1[[#This Row],[Personal Mileage]]","v":{"v":0,"d":"0.0"}},0]
[{"$nulls":6},{"$f":"Table1[[#This Row],[Total Mileage]]-Table1[[#This Row],[Personal Mileage]]","v":{"v":0,"d":"0.0"}},0]
[{"$nulls":6},{"$f":"Table1[[#This Row],[Total Mileage]]-Table1[[#This Row],[Personal Mileage]]","v":{"v":0,"d":"0.0"}},0]
[{"$nulls":6},{"$f":"Table1[[#This Row],[Total Mileage]]-Table1[[#This Row],[Personal Mileage]]","v":{"v":0,"d":"0.0"}},0]
[{"$nulls":6},{"$f":"Table1[[#This Row],[Total Mileage]]-Table1[[#This Row],[Personal Mileage]]","v":{"v":0,"d":"0.0"}},0]
[{"$nulls":6},{"$f":"Table1[[#This Row],[Total Mileage]]-Table1[[#This Row],[Personal Mileage]]","v":{"v":0,"d":"0.0"}},0]
[{"$nulls":6},{"$f":"Table1[[#This Row],[Total Mileage]]-Table1[[#This Row],[Personal Mileage]]","v":{"v":0,"d":"0.0"}},0]
[{"$nulls":6},{"$f":"Table1[[#This Row],[Total Mileage]]-Table1[[#This Row],[Personal Mileage]]","v":{"v":0,"d":"0.0"}},0]
[{"$nulls":6},{"$f":"Table1[[#This Row],[Total Mileage]]-Table1[[#This Row],[Personal Mileage]]","v":{"v":0,"d":"0.0"}},0]
[{"$nulls":6},{"$f":"Table1[[#This Row],[Total Mileage]]-Table1[[#This Row],[Personal Mileage]]","v":{"v":0,"d":"0.0"}},0]
[{"$nulls":6},{"$f":"Table1[[#This Row],[Total Mileage]]-Table1[[#This Row],[Personal Mileage]]","v":{"v":0,"d":"0.0"}},0]
[{"$nulls":6},{"$f":"Table1[[#This Row],[Total Mileage]]-Table1[[#This Row],[Personal Mileage]]","v":{"v":0,"d":"0.0"}},{"$f":"G132*$C$2","v":0}]
[{"$nulls":6},{"$f":"Table1[[#This Row],[Total Mileage]]-Table1[[#This Row],[Personal Mileage]]","v":{"v":0,"d":"0.0"}},0]
[{"$nulls":6},{"$f":"Table1[[#This Row],[Total Mileage]]-Table1[[#This Row],[Personal Mileage]]","v":{"v":0,"d":"0.0"}},0]
[{"$nulls":6},{"$f":"Table1[[#This Row],[Total Mileage]]-Table1[[#This Row],[Personal Mileage]]","v":{"v":0,"d":"0.0"}},0]
[{"$nulls":6},{"$f":"Table1[[#This Row],[Total Mileage]]-Table1[[#This Row],[Personal Mileage]]","v":{"v":0,"d":"0.0"}},0]
[{"$nulls":6},{"$f":"Table1[[#This Row],[Total Mileage]]-Table1[[#This Row],[Personal Mileage]]","v":{"v":0,"d":"0.0"}},0]
[{"$nulls":6},{"$f":"Table1[[#This Row],[Total Mileage]]-Table1[[#This Row],[Personal Mileage]]","v":{"v":0,"d":"0.0"}},0]
[{"$nulls":6},{"$f":"Table1[[#This Row],[Total Mileage]]-Table1[[#This Row],[Personal Mileage]]","v":{"v":0,"d":"0.0"}},0]
[{"$nulls":6},{"$f":"Table1[[#This Row],[Total Mileage]]-Table1[[#This Row],[Personal Mileage]]","v":{"v":0,"d":"0.0"}},0]
[{"$nulls":6},{"$f":"Table1[[#This Row],[Total Mileage]]-Table1[[#This Row],[Personal Mileage]]","v":{"v":0,"d":"0.0"}},0]
[{"$nulls":6},{"$f":"Table1[[#This Row],[Total Mileage]]-Table1[[#This Row],[Personal Mileage]]","v":{"v":0,"d":"0.0"}},0]
[{"$nulls":6},{"$f":"Table1[[#This Row],[Total Mileage]]-Table1[[#This Row],[Personal Mileage]]","v":{"v":0,"d":"0.0"}},0]
[{"$nulls":6},{"$f":"Table1[[#This Row],[Total Mileage]]-Table1[[#This Row],[Personal Mileage]]","v":{"v":0,"d":"0.0"}},0]
[{"$nulls":6},{"$f":"Table1[[#This Row],[Total Mileage]]-Table1[[#This Row],[Personal Mileage]]","v":{"v":0,"d":"0.0"}},0]
[{"$nulls":6},{"$f":"Table1[[#This Row],[Total Mileage]]-Table1[[#This Row],[Personal Mileage]]","v":{"v":0,"d":"0.0"}},0]
[{"$nulls":6},{"$f":"Table1[[#This Row],[Total Mileage]]-Table1[[#This Row],[Personal Mileage]]","v":{"v":0,"d":"0.0"}},0]
[{"$nulls":6},{"$f":"Table1[[#This Row],[Total Mileage]]-Table1[[#This Row],[Personal Mileage]]","v":{"v":0,"d":"0.0"}},0]
[{"$nulls":6},{"$f":"Table1[[#This Row],[Total Mileage]]-Table1[[#This Row],[Personal Mileage]]","v":{"v":0,"d":"0.0"}},0]
[{"$nulls":6},{"$f":"Table1[[#This Row],[Total Mileage]]-Table1[[#This Row],[Personal Mileage]]","v":{"v":0,"d":"0.0"}},0]
[{"$nulls":6},{"$f":"Table1[[#This Row],[Total Mileage]]-Table1[[#This Row],[Personal Mileage]]","v":{"v":0,"d":"0.0"}},0]
[{"$nulls":6},{"$f":"Table1[[#This Row],[Total Mileage]]-Table1[[#This Row],[Personal Mileage]]","v":{"v":0,"d":"0.0"}},0]
[{"$nulls":6},{"$f":"Table1[[#This Row],[Total Mileage]]-Table1[[#This Row],[Personal Mileage]]","v":{"v":0,"d":"0.0"}},0]
[{"$nulls":6},{"$f":"Table1[[#This Row],[Total Mileage]]-Table1[[#This Row],[Personal Mileage]]","v":{"v":0,"d":"0.0"}},0]
[{"$nulls":6},{"$f":"Table1[[#This Row],[Total Mileage]]-Table1[[#This Row],[Personal Mileage]]","v":{"v":0,"d":"0.0"}},0]
[{"$nulls":6},{"$f":"Table1[[#This Row],[Total Mileage]]-Table1[[#This Row],[Personal Mileage]]","v":{"v":0,"d":"0.0"}},0]
[{"$nulls":6},{"$f":"Table1[[#This Row],[Total Mileage]]-Table1[[#This Row],[Personal Mileage]]","v":{"v":0,"d":"0.0"}},0]
[{"$nulls":6},{"$f":"Table1[[#This Row],[Total Mileage]]-Table1[[#This Row],[Personal Mileage]]","v":{"v":0,"d":"0.0"}},0]
[{"$nulls":6},{"$f":"Table1[[#This Row],[Total Mileage]]-Table1[[#This Row],[Personal Mileage]]","v":{"v":0,"d":"0.0"}},0]
[{"$nulls":6},{"$f":"Table1[[#This Row],[Total Mileage]]-Table1[[#This Row],[Personal Mileage]]","v":{"v":0,"d":"0.0"}},0]
[{"$nulls":6},{"$f":"Table1[[#This Row],[Total Mileage]]-Table1[[#This Row],[Personal Mileage]]","v":{"v":0,"d":"0.0"}},0]
[{"$nulls":6},{"$f":"Table1[[#This Row],[Total Mileage]]-Table1[[#This Row],[Personal Mileage]]","v":{"v":0,"d":"0.0"}},0]
[{"$nulls":6},{"$f":"Table1[[#This Row],[Total Mileage]]-Table1[[#This Row],[Personal Mileage]]","v":{"v":0,"d":"0.0"}},0]
[{"$nulls":6},{"$f":"Table1[[#This Row],[Total Mileage]]-Table1[[#This Row],[Personal Mileage]]","v":{"v":0,"d":"0.0"}},0]
[{"$nulls":6},{"$f":"Table1[[#This Row],[Total Mileage]]-Table1[[#This Row],[Personal Mileage]]","v":{"v":0,"d":"0.0"}},0]
[{"$nulls":6},{"$f":"Table1[[#This Row],[Total Mileage]]-Table1[[#This Row],[Personal Mileage]]","v":{"v":0,"d":"0.0"}},0]
[{"$nulls":6},{"$f":"Table1[[#This Row],[Total Mileage]]-Table1[[#This Row],[Personal Mileage]]","v":{"v":0,"d":"0.0"}},0]
[{"$nulls":6},{"$f":"Table1[[#This Row],[Total Mileage]]-Table1[[#This Row],[Personal Mileage]]","v":{"v":0,"d":"0.0"}},0]
[{"$nulls":6},{"$f":"Table1[[#This Row],[Total Mileage]]-Table1[[#This Row],[Personal Mileage]]","v":{"v":0,"d":"0.0"}},0]
[{"$nulls":6},{"$f":"Table1[[#This Row],[Total Mileage]]-Table1[[#This Row],[Personal Mileage]]","v":{"v":0,"d":"0.0"}},0]
[{"$nulls":6},{"$f":"Table1[[#This Row],[Total Mileage]]-Table1[[#This Row],[Personal Mileage]]","v":{"v":0,"d":"0.0"}},0]
[{"$nulls":6},{"$f":"Table1[[#This Row],[Total Mileage]]-Table1[[#This Row],[Personal Mileage]]","v":{"v":0,"d":"0.0"}},0]
[{"$nulls":6},{"$f":"Table1[[#This Row],[Total Mileage]]-Table1[[#This Row],[Personal Mileage]]","v":{"v":0,"d":"0.0"}},0]
[{"$nulls":6},{"$f":"Table1[[#This Row],[Total Mileage]]-Table1[[#This Row],[Personal Mileage]]","v":{"v":0,"d":"0.0"}},0]
[{"$nulls":6},{"$f":"Table1[[#This Row],[Total Mileage]]-Table1[[#This Row],[Personal Mileage]]","v":{"v":0,"d":"0.0"}},0]
[{"$nulls":6},{"$f":"Table1[[#This Row],[Total Mileage]]-Table1[[#This Row],[Personal Mileage]]","v":{"v":0,"d":"0.0"}},0]
[{"$nulls":6},{"$f":"Table1[[#This Row],[Total Mileage]]-Table1[[#This Row],[Personal Mileage]]","v":{"v":0,"d":"0.0"}},0]
[{"$nulls":6},{"$f":"Table1[[#This Row],[Total Mileage]]-Table1[[#This Row],[Personal Mileage]]","v":{"v":0,"d":"0.0"}},0]
[{"$nulls":6},{"$f":"Table1[[#This Row],[Total Mileage]]-Table1[[#This Row],[Personal Mileage]]","v":{"v":0,"d":"0.0"}},0]
[{"$nulls":6},{"$f":"Table1[[#This Row],[Total Mileage]]-Table1[[#This Row],[Personal Mileage]]","v":{"v":0,"d":"0.0"}},0]
[{"$nulls":6},{"$f":"Table1[[#This Row],[Total Mileage]]-Table1[[#This Row],[Personal Mileage]]","v":{"v":0,"d":"0.0"}},0]
[{"$nulls":6},{"$f":"Table1[[#This Row],[Total Mileage]]-Table1[[#This Row],[Personal Mileage]]","v":{"v":0,"d":"0.0"}},0]
[{"$nulls":6},{"$f":"Table1[[#This Row],[Total Mileage]]-Table1[[#This Row],[Personal Mileage]]","v":{"v":0,"d":"0.0"}},0]
[{"$nulls":6},{"$f":"Table1[[#This Row],[Total Mileage]]-Table1[[#This Row],[Personal Mileage]]","v":{"v":0,"d":"0.0"}},0]
[{"$nulls":6},{"$f":"Table1[[#This Row],[Total Mileage]]-Table1[[#This Row],[Personal Mileage]]","v":{"v":0,"d":"0.0"}},0]
[{"$nulls":6},{"$f":"Table1[[#This Row],[Total Mileage]]-Table1[[#This Row],[Personal Mileage]]","v":{"v":0,"d":"0.0"}},0]
[{"$nulls":6},{"$f":"Table1[[#This Row],[Total Mileage]]-Table1[[#This Row],[Personal Mileage]]","v":{"v":0,"d":"0.0"}},0]
[{"$nulls":6},{"$f":"Table1[[#This Row],[Total Mileage]]-Table1[[#This Row],[Personal Mileage]]","v":{"v":0,"d":"0.0"}},0]
[{"$nulls":6},{"$f":"Table1[[#This Row],[Total Mileage]]-Table1[[#This Row],[Personal Mileage]]","v":{"v":0,"d":"0.0"}},0]
[{"$nulls":6},{"$f":"Table1[[#This Row],[Total Mileage]]-Table1[[#This Row],[Personal Mileage]]","v":{"v":0,"d":"0.0"}},0]
[{"$nulls":6},{"$f":"Table1[[#This Row],[Total Mileage]]-Table1[[#This Row],[Personal Mileage]]","v":{"v":0,"d":"0.0"}},0]
[{"$nulls":6},{"$f":"Table1[[#This Row],[Total Mileage]]-Table1[[#This Row],[Personal Mileage]]","v":{"v":0,"d":"0.0"}},0]
[{"$nulls":6},{"$f":"Table1[[#This Row],[Total Mileage]]-Table1[[#This Row],[Personal Mileage]]","v":{"v":0,"d":"0.0"}},0]
[{"$nulls":6},{"$f":"Table1[[#This Row],[Total Mileage]]-Table1[[#This Row],[Personal Mileage]]","v":{"v":0,"d":"0.0"}},0]
[{"$nulls":6},{"$f":"Table1[[#This Row],[Total Mileage]]-Table1[[#This Row],[Personal Mileage]]","v":{"v":0,"d":"0.0"}},0]
[{"$nulls":6},{"$f":"Table1[[#This Row],[Total Mileage]]-Table1[[#This Row],[Personal Mileage]]","v":{"v":0,"d":"0.0"}},{"$f":"G196*$C$2","v":0}]
[{"$nulls":6},{"$f":"Table1[[#This Row],[Total Mileage]]-Table1[[#This Row],[Personal Mileage]]","v":{"v":0,"d":"0.0"}},0]
[{"$nulls":6},{"$f":"Table1[[#This Row],[Total Mileage]]-Table1[[#This Row],[Personal Mileage]]","v":{"v":0,"d":"0.0"}},0]
[{"$nulls":6},{"$f":"Table1[[#This Row],[Total Mileage]]-Table1[[#This Row],[Personal Mileage]]","v":{"v":0,"d":"0.0"}},0]
[{"$nulls":6},{"$f":"Table1[[#This Row],[Total Mileage]]-Table1[[#This Row],[Personal Mileage]]","v":{"v":0,"d":"0.0"}},0]
[{"$nulls":6},{"$f":"Table1[[#This Row],[Total Mileage]]-Table1[[#This Row],[Personal Mileage]]","v":{"v":0,"d":"0.0"}},{"$f":"Table1[[#This Row],[Business Mileage]]*0.58","v":0}]
[{"$nulls":6},{"$f":"Table1[[#This Row],[Total Mileage]]-Table1[[#This Row],[Personal Mileage]]","v":{"v":0,"d":"0.0"}},{"$f":"Table1[[#This Row],[Business Mileage]]*0.58","v":0}]
[{"$nulls":6},{"$f":"Table1[[#This Row],[Total Mileage]]-Table1[[#This Row],[Personal Mileage]]","v":{"v":0,"d":"0.0"}},{"$f":"Table1[[#This Row],[Business Mileage]]*0.58","v":0}]
[{"$nulls":6},{"$f":"Table1[[#This Row],[Total Mileage]]-Table1[[#This Row],[Personal Mileage]]","v":{"v":0,"d":"0.0"}},{"$f":"Table1[[#This Row],[Business Mileage]]*0.58","v":0}]
[{"$nulls":6},{"$f":"Table1[[#This Row],[Total Mileage]]-Table1[[#This Row],[Personal Mileage]]","v":{"v":0,"d":"0.0"}},{"$f":"Table1[[#This Row],[Business Mileage]]*0.58","v":0}]
[{"$nulls":6},{"$f":"Table1[[#This Row],[Total Mileage]]-Table1[[#This Row],[Personal Mileage]]","v":{"v":0,"d":"0.0"}},{"$f":"Table1[[#This Row],[Business Mileage]]*0.58","v":0}]
[{"$nulls":6},{"$f":"Table1[[#This Row],[Total Mileage]]-Table1[[#This Row],[Personal Mileage]]","v":{"v":0,"d":"0.0"}},{"$f":"Table1[[#This Row],[Business Mileage]]*0.58","v":0}]
[{"$nulls":6},{"$f":"Table1[[#This Row],[Total Mileage]]-Table1[[#This Row],[Personal Mileage]]","v":{"v":0,"d":"0.0"}},{"$f":"Table1[[#This Row],[Business Mileage]]*0.58","v":0}]
[{"$nulls":6},{"$f":"Table1[[#This Row],[Total Mileage]]-Table1[[#This Row],[Personal Mileage]]","v":{"v":0,"d":"0.0"}},{"$f":"Table1[[#This Row],[Business Mileage]]*0.58","v":0}]
[{"$nulls":6},{"$f":"Table1[[#This Row],[Total Mileage]]-Table1[[#This Row],[Personal Mileage]]","v":{"v":0,"d":"0.0"}},{"$f":"Table1[[#This Row],[Business Mileage]]*0.58","v":0}]
[{"$nulls":6},{"$f":"Table1[[#This Row],[Total Mileage]]-Table1[[#This Row],[Personal Mileage]]","v":{"v":0,"d":"0.0"}},{"$f":"Table1[[#This Row],[Business Mileage]]*0.58","v":0}]
[{"$nulls":6},{"$f":"Table1[[#This Row],[Total Mileage]]-Table1[[#This Row],[Personal Mileage]]","v":{"v":0,"d":"0.0"}},{"$f":"Table1[[#This Row],[Business Mileage]]*0.58","v":0}]
[{"$nulls":6},{"$f":"Table1[[#This Row],[Total Mileage]]-Table1[[#This Row],[Personal Mileage]]","v":{"v":0,"d":"0.0"}},{"$f":"Table1[[#This Row],[Business Mileage]]*0.58","v":0}]
[{"$nulls":6},{"$f":"Table1[[#This Row],[Total Mileage]]-Table1[[#This Row],[Personal Mileage]]","v":{"v":0,"d":"0.0"}},{"$f":"Table1[[#This Row],[Business Mileage]]*0.58","v":0}]
[{"$nulls":6},{"$f":"Table1[[#This Row],[Total Mileage]]-Table1[[#This Row],[Personal Mileage]]","v":{"v":0,"d":"0.0"}},{"$f":"Table1[[#This Row],[Business Mileage]]*0.58","v":0}]
[{"$nulls":6},{"$f":"Table1[[#This Row],[Total Mileage]]-Table1[[#This Row],[Personal Mileage]]","v":{"v":0,"d":"0.0"}},{"$f":"Table1[[#This Row],[Business Mileage]]*0.58","v":0}]
[{"$nulls":6},{"$f":"Table1[[#This Row],[Total Mileage]]-Table1[[#This Row],[Personal Mileage]]","v":{"v":0,"d":"0.0"}},{"$f":"Table1[[#This Row],[Business Mileage]]*0.58","v":0}]
[{"$nulls":6},{"$f":"Table1[[#This Row],[Total Mileage]]-Table1[[#This Row],[Personal Mileage]]","v":{"v":0,"d":"0.0"}},{"$f":"Table1[[#This Row],[Business Mileage]]*0.58","v":0}]
[{"$nulls":6},{"$f":"Table1[[#This Row],[Total Mileage]]-Table1[[#This Row],[Personal Mileage]]","v":{"v":0,"d":"0.0"}},{"$f":"Table1[[#This Row],[Business Mileage]]*0.58","v":0}]
[{"$nulls":6},{"$f":"Table1[[#This Row],[Total Mileage]]-Table1[[#This Row],[Personal Mileage]]","v":{"v":0,"d":"0.0"}},{"$f":"Table1[[#This Row],[Business Mileage]]*0.58","v":0}]
[{"$nulls":6},{"$f":"Table1[[#This Row],[Total Mileage]]-Table1[[#This Row],[Personal Mileage]]","v":{"v":0,"d":"0.0"}},{"$f":"Table1[[#This Row],[Business Mileage]]*0.58","v":0}]
[{"$nulls":6},{"$f":"Table1[[#This Row],[Total Mileage]]-Table1[[#This Row],[Personal Mileage]]","v":{"v":0,"d":"0.0"}},{"$f":"Table1[[#This Row],[Business Mileage]]*0.58","v":0}]
[{"$nulls":6},{"$f":"Table1[[#This Row],[Total Mileage]]-Table1[[#This Row],[Personal Mileage]]","v":{"v":0,"d":"0.0"}},{"$f":"Table1[[#This Row],[Business Mileage]]*0.58","v":0}]
[{"$nulls":6},{"$f":"Table1[[#This Row],[Total Mileage]]-Table1[[#This Row],[Personal Mileage]]","v":{"v":0,"d":"0.0"}},{"$f":"Table1[[#This Row],[Business Mileage]]*0.58","v":0}]
[{"$nulls":6},{"$f":"Table1[[#This Row],[Total Mileage]]-Table1[[#This Row],[Personal Mileage]]","v":{"v":0,"d":"0.0"}},{"$f":"Table1[[#This Row],[Business Mileage]]*0.58","v":0}]
[{"$nulls":6},{"$f":"Table1[[#This Row],[Total Mileage]]-Table1[[#This Row],[Personal Mileage]]","v":{"v":0,"d":"0.0"}},{"$f":"Table1[[#This Row],[Business Mileage]]*0.58","v":0}]
[{"$nulls":6},{"$f":"Table1[[#This Row],[Total Mileage]]-Table1[[#This Row],[Personal Mileage]]","v":{"v":0,"d":"0.0"}},{"$f":"Table1[[#This Row],[Business Mileage]]*0.58","v":0}]
[{"$nulls":6},{"$f":"Table1[[#This Row],[Total Mileage]]-Table1[[#This Row],[Personal Mileage]]","v":{"v":0,"d":"0.0"}},{"$f":"Table1[[#This Row],[Business Mileage]]*0.58","v":0}]
[{"$nulls":6},{"$f":"Table1[[#This Row],[Total Mileage]]-Table1[[#This Row],[Personal Mileage]]","v":{"v":0,"d":"0.0"}},{"$f":"Table1[[#This Row],[Business Mileage]]*0.58","v":0}]
[{"$nulls":6},{"$f":"Table1[[#This Row],[Total Mileage]]-Table1[[#This Row],[Personal Mileage]]","v":{"v":0,"d":"0.0"}},{"$f":"Table1[[#This Row],[Business Mileage]]*0.58","v":0}]
[{"$nulls":6},{"$f":"Table1[[#This Row],[Total Mileage]]-Table1[[#This Row],[Personal Mileage]]","v":{"v":0,"d":"0.0"}},{"$f":"Table1[[#This Row],[Business Mileage]]*0.58","v":0}]
[{"$nulls":6},{"$f":"Table1[[#This Row],[Total Mileage]]-Table1[[#This Row],[Personal Mileage]]","v":{"v":0,"d":"0.0"}},{"$f":"Table1[[#This Row],[Business Mileage]]*0.58","v":0}]
[{"$nulls":6},{"$f":"Table1[[#This Row],[Total Mileage]]-Table1[[#This Row],[Personal Mileage]]","v":{"v":0,"d":"0.0"}},{"$f":"Table1[[#This Row],[Business Mileage]]*0.58","v":0}]
[{"$nulls":6},{"$f":"Table1[[#This Row],[Total Mileage]]-Table1[[#This Row],[Personal Mileage]]","v":{"v":0,"d":"0.0"}},{"$f":"Table1[[#This Row],[Business Mileage]]*0.58","v":0}]
[{"$nulls":6},{"$f":"Table1[[#This Row],[Total Mileage]]-Table1[[#This Row],[Personal Mileage]]","v":{"v":0,"d":"0.0"}},{"$f":"Table1[[#This Row],[Business Mileage]]*0.58","v":0}]
[{"$nulls":6},{"$f":"Table1[[#This Row],[Total Mileage]]-Table1[[#This Row],[Personal Mileage]]","v":{"v":0,"d":"0.0"}},{"$f":"Table1[[#This Row],[Business Mileage]]*0.58","v":0}]
[{"$nulls":6},{"$f":"Table1[[#This Row],[Total Mileage]]-Table1[[#This Row],[Personal Mileage]]","v":{"v":0,"d":"0.0"}},{"$f":"Table1[[#This Row],[Business Mileage]]*0.58","v":0}]
[{"$nulls":6},{"$f":"Table1[[#This Row],[Total Mileage]]-Table1[[#This Row],[Personal Mileage]]","v":{"v":0,"d":"0.0"}},{"$f":"Table1[[#This Row],[Business Mileage]]*0.58","v":0}]
[{"$nulls":6},{"$f":"Table1[[#This Row],[Total Mileage]]-Table1[[#This Row],[Personal Mileage]]","v":{"v":0,"d":"0.0"}},{"$f":"Table1[[#This Row],[Business Mileage]]*0.58","v":0}]
[{"$nulls":6},{"$f":"Table1[[#This Row],[Total Mileage]]-Table1[[#This Row],[Personal Mileage]]","v":{"v":0,"d":"0.0"}},{"$f":"Table1[[#This Row],[Business Mileage]]*0.58","v":0}]
[{"$nulls":6},{"$f":"Table1[[#This Row],[Total Mileage]]-Table1[[#This Row],[Personal Mileage]]","v":{"v":0,"d":"0.0"}},{"$f":"Table1[[#This Row],[Business Mileage]]*0.58","v":0}]
[{"$nulls":6},{"$f":"Table1[[#This Row],[Total Mileage]]-Table1[[#This Row],[Personal Mileage]]","v":{"v":0,"d":"0.0"}},{"$f":"Table1[[#This Row],[Business Mileage]]*0.58","v":0}]
[{"$nulls":6},{"$f":"Table1[[#This Row],[Total Mileage]]-Table1[[#This Row],[Personal Mileage]]","v":{"v":0,"d":"0.0"}},{"$f":"Table1[[#This Row],[Business Mileage]]*0.58","v":0}]
[{"$nulls":6},{"$f":"Table1[[#This Row],[Total Mileage]]-Table1[[#This Row],[Personal Mileage]]","v":{"v":0,"d":"0.0"}},{"$f":"Table1[[#This Row],[Business Mileage]]*0.58","v":0}]
[{"$nulls":6},{"$f":"Table1[[#This Row],[Total Mileage]]-Table1[[#This Row],[Personal Mileage]]","v":{"v":0,"d":"0.0"}},{"$f":"Table1[[#This Row],[Business Mileage]]*0.58","v":0}]
[{"$nulls":6},{"$f":"Table1[[#This Row],[Total Mileage]]-Table1[[#This Row],[Personal Mileage]]","v":{"v":0,"d":"0.0"}},{"$f":"Table1[[#This Row],[Business Mileage]]*0.58","v":0}]
[{"$nulls":6},{"$f":"Table1[[#This Row],[Total Mileage]]-Table1[[#This Row],[Personal Mileage]]","v":{"v":0,"d":"0.0"}},{"$f":"Table1[[#This Row],[Business Mileage]]*0.58","v":0}]
[{"$nulls":6},{"$f":"Table1[[#This Row],[Total Mileage]]-Table1[[#This Row],[Personal Mileage]]","v":{"v":0,"d":"0.0"}},{"$f":"Table1[[#This Row],[Business Mileage]]*0.58","v":0}]
[{"$nulls":6},{"$f":"Table1[[#This Row],[Total Mileage]]-Table1[[#This Row],[Personal Mileage]]","v":{"v":0,"d":"0.0"}},{"$f":"Table1[[#This Row],[Business Mileage]]*0.58","v":0}]
[{"$nulls":6},{"$f":"Table1[[#This Row],[Total Mileage]]-Table1[[#This Row],[Personal Mileage]]","v":{"v":0,"d":"0.0"}},{"$f":"Table1[[#This Row],[Business Mileage]]*0.58","v":0}]
[{"$nulls":6},{"$f":"Table1[[#This Row],[Total Mileage]]-Table1[[#This Row],[Personal Mileage]]","v":{"v":0,"d":"0.0"}},{"$f":"Table1[[#This Row],[Business Mileage]]*0.58","v":0}]
[{"$nulls":6},{"$f":"Table1[[#This Row],[Total Mileage]]-Table1[[#This Row],[Personal Mileage]]","v":{"v":0,"d":"0.0"}},{"$f":"Table1[[#This Row],[Business Mileage]]*0.58","v":0}]
[{"$nulls":6},{"$f":"Table1[[#This Row],[Total Mileage]]-Table1[[#This Row],[Personal Mileage]]","v":{"v":0,"d":"0.0"}},{"$f":"Table1[[#This Row],[Business Mileage]]*0.58","v":0}]
[{"$nulls":6},{"$f":"Table1[[#This Row],[Total Mileage]]-Table1[[#This Row],[Personal Mileage]]","v":{"v":0,"d":"0.0"}},{"$f":"Table1[[#This Row],[Business Mileage]]*0.58","v":0}]
[{"$nulls":6},{"$f":"Table1[[#This Row],[Total Mileage]]-Table1[[#This Row],[Personal Mileage]]","v":{"v":0,"d":"0.0"}},{"$f":"Table1[[#This Row],[Business Mileage]]*0.58","v":0}]
[{"$nulls":6},{"$f":"Table1[[#This Row],[Total Mileage]]-Table1[[#This Row],[Personal Mileage]]","v":{"v":0,"d":"0.0"}},{"$f":"Table1[[#This Row],[Business Mileage]]*0.58","v":0}]
[{"$nulls":6},{"$f":"Table1[[#This Row],[Total Mileage]]-Table1[[#This Row],[Personal Mileage]]","v":{"v":0,"d":"0.0"}},{"$f":"Table1[[#This Row],[Business Mileage]]*0.58","v":0}]
[{"$nulls":6},{"$f":"Table1[[#This Row],[Total Mileage]]-Table1[[#This Row],[Personal Mileage]]","v":{"v":0,"d":"0.0"}},{"$f":"Table1[[#This Row],[Business Mileage]]*0.58","v":0}]
[{"$nulls":6},{"$f":"Table1[[#This Row],[Total Mileage]]-Table1[[#This Row],[Personal Mileage]]","v":{"v":0,"d":"0.0"}},{"$f":"Table1[[#This Row],[Business Mileage]]*0.58","v":0}]
[{"$nulls":6},{"$f":"Table1[[#This Row],[Total Mileage]]-Table1[[#This Row],[Personal Mileage]]","v":{"v":0,"d":"0.0"}},{"$f":"Table1[[#This Row],[Business Mileage]]*0.58","v":0}]
[{"$nulls":6},{"$f":"Table1[[#This Row],[Total Mileage]]-Table1[[#This Row],[Personal Mileage]]","v":{"v":0,"d":"0.0"}},{"$f":"Table1[[#This Row],[Business Mileage]]*0.58","v":0}]
[{"$nulls":6},{"$f":"Table1[[#This Row],[Total Mileage]]-Table1[[#This Row],[Personal Mileage]]","v":{"v":0,"d":"0.0"}},{"$f":"Table1[[#This Row],[Business Mileage]]*0.58","v":0}]
[{"$nulls":6},{"$f":"Table1[[#This Row],[Total Mileage]]-Table1[[#This Row],[Personal Mileage]]","v":{"v":0,"d":"0.0"}},{"$f":"Table1[[#This Row],[Business Mileage]]*0.58","v":0}]
[{"$nulls":6},{"$f":"Table1[[#This Row],[Total Mileage]]-Table1[[#This Row],[Personal Mileage]]","v":{"v":0,"d":"0.0"}},{"$f":"Table1[[#This Row],[Business Mileage]]*0.58","v":0}]
[{"$nulls":6},{"$f":"Table1[[#This Row],[Total Mileage]]-Table1[[#This Row],[Personal Mileage]]","v":{"v":0,"d":"0.0"}},{"$f":"Table1[[#This Row],[Business Mileage]]*0.58","v":0}]
[{"$nulls":6},{"$f":"Table1[[#This Row],[Total Mileage]]-Table1[[#This Row],[Personal Mileage]]","v":{"v":0,"d":"0.0"}},{"$f":"Table1[[#This Row],[Business Mileage]]*0.58","v":0}]
[{"$nulls":6},{"$f":"Table1[[#This Row],[Total Mileage]]-Table1[[#This Row],[Personal Mileage]]","v":{"v":0,"d":"0.0"}},{"$f":"Table1[[#This Row],[Business Mileage]]*0.58","v":0}]
[{"$nulls":6},{"$f":"Table1[[#This Row],[Total Mileage]]-Table1[[#This Row],[Personal Mileage]]","v":{"v":0,"d":"0.0"}},{"$f":"Table1[[#This Row],[Business Mileage]]*0.58","v":0}]
[{"$nulls":6},{"$f":"Table1[[#This Row],[Total Mileage]]-Table1[[#This Row],[Personal Mileage]]","v":{"v":0,"d":"0.0"}},{"$f":"Table1[[#This Row],[Business Mileage]]*0.58","v":0}]
[{"$nulls":6},{"$f":"Table1[[#This Row],[Total Mileage]]-Table1[[#This Row],[Personal Mileage]]","v":{"v":0,"d":"0.0"}},{"$f":"Table1[[#This Row],[Business Mileage]]*0.58","v":0}]
[{"$nulls":6},{"$f":"Table1[[#This Row],[Total Mileage]]-Table1[[#This Row],[Personal Mileage]]","v":{"v":0,"d":"0.0"}},{"$f":"Table1[[#This Row],[Business Mileage]]*0.58","v":0}]
[{"$nulls":6},{"$f":"Table1[[#This Row],[Total Mileage]]-Table1[[#This Row],[Personal Mileage]]","v":{"v":0,"d":"0.0"}},{"$f":"Table1[[#This Row],[Business Mileage]]*0.58","v":0}]
[{"$nulls":6},{"$f":"Table1[[#This Row],[Total Mileage]]-Table1[[#This Row],[Personal Mileage]]","v":{"v":0,"d":"0.0"}},{"$f":"Table1[[#This Row],[Business Mileage]]*0.58","v":0}]
[{"$nulls":6},{"$f":"Table1[[#This Row],[Total Mileage]]-Table1[[#This Row],[Personal Mileage]]","v":{"v":0,"d":"0.0"}},{"$f":"Table1[[#This Row],[Business Mileage]]*0.58","v":0}]
[{"$nulls":6},{"$f":"Table1[[#This Row],[Total Mileage]]-Table1[[#This Row],[Personal Mileage]]","v":{"v":0,"d":"0.0"}},{"$f":"Table1[[#This Row],[Business Mileage]]*0.58","v":0}]
[{"$nulls":6},{"$f":"Table1[[#This Row],[Total Mileage]]-Table1[[#This Row],[Personal Mileage]]","v":{"v":0,"d":"0.0"}},{"$f":"Table1[[#This Row],[Business Mileage]]*0.58","v":0}]
[{"$nulls":6},{"$f":"Table1[[#This Row],[Total Mileage]]-Table1[[#This Row],[Personal Mileage]]","v":{"v":0,"d":"0.0"}},{"$f":"Table1[[#This Row],[Business Mileage]]*0.58","v":0}]
[{"$nulls":6},{"$f":"Table1[[#This Row],[Total Mileage]]-Table1[[#This Row],[Personal Mileage]]","v":{"v":0,"d":"0.0"}},{"$f":"Table1[[#This Row],[Business Mileage]]*0.58","v":0}]
[{"$nulls":6},{"$f":"Table1[[#This Row],[Total Mileage]]-Table1[[#This Row],[Personal Mileage]]","v":{"v":0,"d":"0.0"}},{"$f":"Table1[[#This Row],[Business Mileage]]*0.58","v":0}]
[{"$nulls":6},{"$f":"Table1[[#This Row],[Total Mileage]]-Table1[[#This Row],[Personal Mileage]]","v":{"v":0,"d":"0.0"}},{"$f":"Table1[[#This Row],[Business Mileage]]*0.58","v":0}]
[{"$nulls":6},{"$f":"Table1[[#This Row],[Total Mileage]]-Table1[[#This Row],[Personal Mileage]]","v":{"v":0,"d":"0.0"}},{"$f":"Table1[[#This Row],[Business Mileage]]*0.58","v":0}]
[{"$nulls":6},{"$f":"Table1[[#This Row],[Total Mileage]]-Table1[[#This Row],[Personal Mileage]]","v":{"v":0,"d":"0.0"}},{"$f":"Table1[[#This Row],[Business Mileage]]*0.58","v":0}]
[{"$nulls":6},{"$f":"Table1[[#This Row],[Total Mileage]]-Table1[[#This Row],[Personal Mileage]]","v":{"v":0,"d":"0.0"}},{"$f":"Table1[[#This Row],[Business Mileage]]*0.58","v":0}]
[{"$nulls":6},{"$f":"Table1[[#This Row],[Total Mileage]]-Table1[[#This Row],[Personal Mileage]]","v":{"v":0,"d":"0.0"}},{"$f":"Table1[[#This Row],[Business Mileage]]*0.58","v":0}]
[{"$nulls":6},{"$f":"Table1[[#This Row],[Total Mileage]]-Table1[[#This Row],[Personal Mileage]]","v":{"v":0,"d":"0.0"}},{"$f":"Table1[[#This Row],[Business Mileage]]*0.58","v":0}]
[{"$nulls":6},{"$f":"Table1[[#This Row],[Total Mileage]]-Table1[[#This Row],[Personal Mileage]]","v":{"v":0,"d":"0.0"}},{"$f":"Table1[[#This Row],[Business Mileage]]*0.58","v":0}]
[{"$nulls":6},{"$f":"Table1[[#This Row],[Total Mileage]]-Table1[[#This Row],[Personal Mileage]]","v":{"v":0,"d":"0.0"}},{"$f":"Table1[[#This Row],[Business Mileage]]*0.58","v":0}]
[{"$nulls":6},{"$f":"Table1[[#This Row],[Total Mileage]]-Table1[[#This Row],[Personal Mileage]]","v":{"v":0,"d":"0.0"}},{"$f":"Table1[[#This Row],[Business Mileage]]*0.58","v":0}]
[{"$nulls":6},{"$f":"Table1[[#This Row],[Total Mileage]]-Table1[[#This Row],[Personal Mileage]]","v":{"v":0,"d":"0.0"}},{"$f":"Table1[[#This Row],[Business Mileage]]*0.58","v":0}]
[{"$nulls":6},{"$f":"Table1[[#This Row],[Total Mileage]]-Table1[[#This Row],[Personal Mileage]]","v":{"v":0,"d":"0.0"}},{"$f":"Table1[[#This Row],[Business Mileage]]*0.58","v":0}]
[{"$nulls":6},{"$f":"Table1[[#This Row],[Total Mileage]]-Table1[[#This Row],[Personal Mileage]]","v":{"v":0,"d":"0.0"}},{"$f":"Table1[[#This Row],[Business Mileage]]*0.58","v":0}]
[{"$nulls":6},{"$f":"Table1[[#This Row],[Total Mileage]]-Table1[[#This Row],[Personal Mileage]]","v":{"v":0,"d":"0.0"}},{"$f":"Table1[[#This Row],[Business Mileage]]*0.58","v":0}]
[{"$nulls":6},{"$f":"Table1[[#This Row],[Total Mileage]]-Table1[[#This Row],[Personal Mileage]]","v":{"v":0,"d":"0.0"}},{"$f":"Table1[[#This Row],[Business Mileage]]*0.58","v":0}]
[{"$nulls":6},{"$f":"Table1[[#This Row],[Total Mileage]]-Table1[[#This Row],[Personal Mileage]]","v":{"v":0,"d":"0.0"}},{"$f":"Table1[[#This Row],[Business Mileage]]*0.58","v":0}]
[{"$nulls":6},{"$f":"Table1[[#This Row],[Total Mileage]]-Table1[[#This Row],[Personal Mileage]]","v":{"v":0,"d":"0.0"}},{"$f":"Table1[[#This Row],[Business Mileage]]*0.58","v":0}]
[{"$nulls":6},{"$f":"Table1[[#This Row],[Total Mileage]]-Table1[[#This Row],[Personal Mileage]]","v":{"v":0,"d":"0.0"}},{"$f":"Table1[[#This Row],[Business Mileage]]*0.58","v":0}]
[{"$nulls":6},{"$f":"Table1[[#This Row],[Total Mileage]]-Table1[[#This Row],[Personal Mileage]]","v":{"v":0,"d":"0.0"}},{"$f":"Table1[[#This Row],[Business Mileage]]*0.58","v":0}]
[{"$nulls":6},{"$f":"Table1[[#This Row],[Total Mileage]]-Table1[[#This Row],[Personal Mileage]]","v":{"v":0,"d":"0.0"}},{"$f":"Table1[[#This Row],[Business Mileage]]*0.58","v":0}]
[{"$nulls":6},{"$f":"Table1[[#This Row],[Total Mileage]]-Table1[[#This Row],[Personal Mileage]]","v":{"v":0,"d":"0.0"}},{"$f":"Table1[[#This Row],[Business Mileage]]*0.58","v":0}]
[{"$nulls":6},{"$f":"Table1[[#This Row],[Total Mileage]]-Table1[[#This Row],[Personal Mileage]]","v":{"v":0,"d":"0.0"}},{"$f":"Table1[[#This Row],[Business Mileage]]*0.58","v":0}]
[{"$nulls":6},{"$f":"Table1[[#This Row],[Total Mileage]]-Table1[[#This Row],[Personal Mileage]]","v":{"v":0,"d":"0.0"}},{"$f":"Table1[[#This Row],[Business Mileage]]*0.58","v":0}]
[{"$nulls":6},{"$f":"Table1[[#This Row],[Total Mileage]]-Table1[[#This Row],[Personal Mileage]]","v":{"v":0,"d":"0.0"}},{"$f":"Table1[[#This Row],[Business Mileage]]*0.58","v":0}]
[{"$nulls":6},{"$f":"Table1[[#This Row],[Total Mileage]]-Table1[[#This Row],[Personal Mileage]]","v":{"v":0,"d":"0.0"}},{"$f":"Table1[[#This Row],[Business Mileage]]*0.58","v":0}]
[{"$nulls":6},{"$f":"Table1[[#This Row],[Total Mileage]]-Table1[[#This Row],[Personal Mileage]]","v":{"v":0,"d":"0.0"}},{"$f":"Table1[[#This Row],[Business Mileage]]*0.58","v":0}]
[{"$nulls":6},{"$f":"Table1[[#This Row],[Total Mileage]]-Table1[[#This Row],[Personal Mileage]]","v":{"v":0,"d":"0.0"}},{"$f":"Table1[[#This Row],[Business Mileage]]*0.58","v":0}]
[{"$nulls":6},{"$f":"Table1[[#This Row],[Total Mileage]]-Table1[[#This Row],[Personal Mileage]]","v":{"v":0,"d":"0.0"}},{"$f":"Table1[[#This Row],[Business Mileage]]*0.58","v":0}]
[{"$nulls":6},{"$f":"Table1[[#This Row],[Total Mileage]]-Table1[[#This Row],[Personal Mileage]]","v":{"v":0,"d":"0.0"}},{"$f":"Table1[[#This Row],[Business Mileage]]*0.58","v":0}]
[{"$nulls":6},{"$f":"Table1[[#This Row],[Total Mileage]]-Table1[[#This Row],[Personal Mileage]]","v":{"v":0,"d":"0.0"}},{"$f":"Table1[[#This Row],[Business Mileage]]*0.58","v":0}]
[{"$nulls":6},{"$f":"Table1[[#This Row],[Total Mileage]]-Table1[[#This Row],[Personal Mileage]]","v":{"v":0,"d":"0.0"}},{"$f":"Table1[[#This Row],[Business Mileage]]*0.58","v":0}]
[{"$nulls":6},{"$f":"Table1[[#This Row],[Total Mileage]]-Table1[[#This Row],[Personal Mileage]]","v":{"v":0,"d":"0.0"}},{"$f":"Table1[[#This Row],[Business Mileage]]*0.58","v":0}]
[{"$nulls":6},{"$f":"Table1[[#This Row],[Total Mileage]]-Table1[[#This Row],[Personal Mileage]]","v":{"v":0,"d":"0.0"}},{"$f":"Table1[[#This Row],[Business Mileage]]*0.58","v":0}]
[{"$nulls":6},{"$f":"Table1[[#This Row],[Total Mileage]]-Table1[[#This Row],[Personal Mileage]]","v":{"v":0,"d":"0.0"}},{"$f":"Table1[[#This Row],[Business Mileage]]*0.58","v":0}]
[{"$nulls":6},{"$f":"Table1[[#This Row],[Total Mileage]]-Table1[[#This Row],[Personal Mileage]]","v":{"v":0,"d":"0.0"}},{"$f":"Table1[[#This Row],[Business Mileage]]*0.58","v":0}]
[{"$nulls":6},{"$f":"Table1[[#This Row],[Total Mileage]]-Table1[[#This Row],[Personal Mileage]]","v":{"v":0,"d":"0.0"}},{"$f":"Table1[[#This Row],[Business Mileage]]*0.58","v":0}]
[{"$nulls":6},{"$f":"Table1[[#This Row],[Total Mileage]]-Table1[[#This Row],[Personal Mileage]]","v":{"v":0,"d":"0.0"}},{"$f":"Table1[[#This Row],[Business Mileage]]*0.58","v":0}]
[{"$nulls":6},{"$f":"Table1[[#This Row],[Total Mileage]]-Table1[[#This Row],[Personal Mileage]]","v":{"v":0,"d":"0.0"}},{"$f":"Table1[[#This Row],[Business Mileage]]*0.58","v":0}]
[{"$nulls":6},{"$f":"Table1[[#This Row],[Total Mileage]]-Table1[[#This Row],[Personal Mileage]]","v":{"v":0,"d":"0.0"}},{"$f":"Table1[[#This Row],[Business Mileage]]*0.58","v":0}]
[{"$nulls":6},{"$f":"Table1[[#This Row],[Total Mileage]]-Table1[[#This Row],[Personal Mileage]]","v":{"v":0,"d":"0.0"}},{"$f":"Table1[[#This Row],[Business Mileage]]*0.58","v":0}]
[{"$nulls":6},{"$f":"Table1[[#This Row],[Total Mileage]]-Table1[[#This Row],[Personal Mileage]]","v":{"v":0,"d":"0.0"}},{"$f":"Table1[[#This Row],[Business Mileage]]*0.58","v":0}]
[{"$nulls":6},{"$f":"Table1[[#This Row],[Total Mileage]]-Table1[[#This Row],[Personal Mileage]]","v":{"v":0,"d":"0.0"}},{"$f":"Table1[[#This Row],[Business Mileage]]*0.58","v":0}]
[{"$nulls":6},{"$f":"Table1[[#This Row],[Total Mileage]]-Table1[[#This Row],[Personal Mileage]]","v":{"v":0,"d":"0.0"}},{"$f":"Table1[[#This Row],[Business Mileage]]*0.58","v":0}]
[{"$nulls":6},{"$f":"Table1[[#This Row],[Total Mileage]]-Table1[[#This Row],[Personal Mileage]]","v":{"v":0,"d":"0.0"}},{"$f":"Table1[[#This Row],[Business Mileage]]*0.58","v":0}]
[{"$nulls":6},{"$f":"Table1[[#This Row],[Total Mileage]]-Table1[[#This Row],[Personal Mileage]]","v":{"v":0,"d":"0.0"}},{"$f":"Table1[[#This Row],[Business Mileage]]*0.58","v":0}]
[{"$nulls":6},{"$f":"Table1[[#This Row],[Total Mileage]]-Table1[[#This Row],[Personal Mileage]]","v":{"v":0,"d":"0.0"}},{"$f":"Table1[[#This Row],[Business Mileage]]*0.58","v":0}]
[{"$nulls":6},{"$f":"Table1[[#This Row],[Total Mileage]]-Table1[[#This Row],[Personal Mileage]]","v":{"v":0,"d":"0.0"}},{"$f":"Table1[[#This Row],[Business Mileage]]*0.58","v":0}]
[{"$nulls":6},{"$f":"Table1[[#This Row],[Total Mileage]]-Table1[[#This Row],[Personal Mileage]]","v":{"v":0,"d":"0.0"}},{"$f":"Table1[[#This Row],[Business Mileage]]*0.58","v":0}]
[{"$nulls":6},{"$f":"Table1[[#This Row],[Total Mileage]]-Table1[[#This Row],[Personal Mileage]]","v":{"v":0,"d":"0.0"}},{"$f":"Table1[[#This Row],[Business Mileage]]*0.58","v":0}]
[{"$nulls":6},{"$f":"Table1[[#This Row],[Total Mileage]]-Table1[[#This Row],[Personal Mileage]]","v":{"v":0,"d":"0.0"}},{"$f":"Table1[[#This Row],[Business Mileage]]*0.58","v":0}]
[{"$nulls":6},{"$f":"Table1[[#This Row],[Total Mileage]]-Table1[[#This Row],[Personal Mileage]]","v":{"v":0,"d":"0.0"}},{"$f":"Table1[[#This Row],[Business Mileage]]*0.58","v":0}]
[{"$nulls":6},{"$f":"Table1[[#This Row],[Total Mileage]]-Table1[[#This Row],[Personal Mileage]]","v":{"v":0,"d":"0.0"}},{"$f":"Table1[[#This Row],[Business Mileage]]*0.58","v":0}]
[{"$nulls":6},{"$f":"Table1[[#This Row],[Total Mileage]]-Table1[[#This Row],[Personal Mileage]]","v":{"v":0,"d":"0.0"}},{"$f":"Table1[[#This Row],[Business Mileage]]*0.58","v":0}]
[{"$nulls":6},{"$f":"Table1[[#This Row],[Total Mileage]]-Table1[[#This Row],[Personal Mileage]]","v":{"v":0,"d":"0.0"}},{"$f":"Table1[[#This Row],[Business Mileage]]*0.58","v":0}]
[{"$nulls":6},{"$f":"Table1[[#This Row],[Total Mileage]]-Table1[[#This Row],[Personal Mileage]]","v":{"v":0,"d":"0.0"}},{"$f":"Table1[[#This Row],[Business Mileage]]*0.58","v":0}]
[{"$nulls":6},{"$f":"Table1[[#This Row],[Total Mileage]]-Table1[[#This Row],[Personal Mileage]]","v":{"v":0,"d":"0.0"}},{"$f":"Table1[[#This Row],[Business Mileage]]*0.58","v":0}]
[{"$nulls":6},{"$f":"Table1[[#This Row],[Total Mileage]]-Table1[[#This Row],[Personal Mileage]]","v":{"v":0,"d":"0.0"}},{"$f":"Table1[[#This Row],[Business Mileage]]*0.58","v":0}]
[{"$nulls":6},{"$f":"Table1[[#This Row],[Total Mileage]]-Table1[[#This Row],[Personal Mileage]]","v":{"v":0,"d":"0.0"}},{"$f":"Table1[[#This Row],[Business Mileage]]*0.58","v":0}]
[{"$nulls":6},{"$f":"Table1[[#This Row],[Total Mileage]]-Table1[[#This Row],[Personal Mileage]]","v":{"v":0,"d":"0.0"}},{"$f":"Table1[[#This Row],[Business Mileage]]*0.58","v":0}]
[{"$nulls":6},{"$f":"Table1[[#This Row],[Total Mileage]]-Table1[[#This Row],[Personal Mileage]]","v":{"v":0,"d":"0.0"}},{"$f":"Table1[[#This Row],[Business Mileage]]*0.58","v":0}]
[{"$nulls":6},{"$f":"Table1[[#This Row],[Total Mileage]]-Table1[[#This Row],[Personal Mileage]]","v":{"v":0,"d":"0.0"}},{"$f":"Table1[[#This Row],[Business Mileage]]*0.58","v":0}]
[{"$nulls":6},{"$f":"Table1[[#This Row],[Total Mileage]]-Table1[[#This Row],[Personal Mileage]]","v":{"v":0,"d":"0.0"}},{"$f":"Table1[[#This Row],[Business Mileage]]*0.58","v":0}]
[{"$nulls":6},{"$f":"Table1[[#This Row],[Total Mileage]]-Table1[[#This Row],[Personal Mileage]]","v":{"v":0,"d":"0.0"}},{"$f":"Table1[[#This Row],[Business Mileage]]*0.58","v":0}]
[{"$nulls":6},{"$f":"Table1[[#This Row],[Total Mileage]]-Table1[[#This Row],[Personal Mileage]]","v":{"v":0,"d":"0.0"}},{"$f":"Table1[[#This Row],[Business Mileage]]*0.58","v":0}]
[{"$nulls":6},{"$f":"Table1[[#This Row],[Total Mileage]]-Table1[[#This Row],[Personal Mileage]]","v":{"v":0,"d":"0.0"}},{"$f":"Table1[[#This Row],[Business Mileage]]*0.58","v":0}]
[{"$nulls":6},{"$f":"Table1[[#This Row],[Total Mileage]]-Table1[[#This Row],[Personal Mileage]]","v":{"v":0,"d":"0.0"}},{"$f":"Table1[[#This Row],[Business Mileage]]*0.58","v":0}]
[{"$nulls":6},{"$f":"Table1[[#This Row],[Total Mileage]]-Table1[[#This Row],[Personal Mileage]]","v":{"v":0,"d":"0.0"}},{"$f":"Table1[[#This Row],[Business Mileage]]*0.58","v":0}]
[{"$nulls":6},{"$f":"Table1[[#This Row],[Total Mileage]]-Table1[[#This Row],[Personal Mileage]]","v":{"v":0,"d":"0.0"}},{"$f":"Table1[[#This Row],[Business Mileage]]*0.58","v":0}]
[{"$nulls":6},{"$f":"Table1[[#This Row],[Total Mileage]]-Table1[[#This Row],[Personal Mileage]]","v":{"v":0,"d":"0.0"}},{"$f":"Table1[[#This Row],[Business Mileage]]*0.58","v":0}]
[{"$nulls":6},{"$f":"Table1[[#This Row],[Total Mileage]]-Table1[[#This Row],[Personal Mileage]]","v":{"v":0,"d":"0.0"}},{"$f":"Table1[[#This Row],[Business Mileage]]*0.58","v":0}]
[{"$nulls":6},{"$f":"Table1[[#This Row],[Total Mileage]]-Table1[[#This Row],[Personal Mileage]]","v":{"v":0,"d":"0.0"}},{"$f":"Table1[[#This Row],[Business Mileage]]*0.58","v":0}]
[{"$nulls":6},{"$f":"Table1[[#This Row],[Total Mileage]]-Table1[[#This Row],[Personal Mileage]]","v":{"v":0,"d":"0.0"}},{"$f":"Table1[[#This Row],[Business Mileage]]*0.58","v":0}]
[{"$nulls":6},{"$f":"Table1[[#This Row],[Total Mileage]]-Table1[[#This Row],[Personal Mileage]]","v":{"v":0,"d":"0.0"}},{"$f":"Table1[[#This Row],[Business Mileage]]*0.58","v":0}]
[{"$nulls":6},{"$f":"Table1[[#This Row],[Total Mileage]]-Table1[[#This Row],[Personal Mileage]]","v":{"v":0,"d":"0.0"}},{"$f":"Table1[[#This Row],[Business Mileage]]*0.58","v":0}]
[{"$nulls":6},{"$f":"Table1[[#This Row],[Total Mileage]]-Table1[[#This Row],[Personal Mileage]]","v":{"v":0,"d":"0.0"}},{"$f":"Table1[[#This Row],[Business Mileage]]*0.58","v":0}]
[{"$nulls":6},{"$f":"Table1[[#This Row],[Total Mileage]]-Table1[[#This Row],[Personal Mileage]]","v":{"v":0,"d":"0.0"}},{"$f":"Table1[[#This Row],[Business Mileage]]*0.58","v":0}]
[{"$nulls":6},{"$f":"Table1[[#This Row],[Total Mileage]]-Table1[[#This Row],[Personal Mileage]]","v":{"v":0,"d":"0.0"}},{"$f":"Table1[[#This Row],[Business Mileage]]*0.58","v":0}]
[{"$nulls":6},{"$f":"Table1[[#This Row],[Total Mileage]]-Table1[[#This Row],[Personal Mileage]]","v":{"v":0,"d":"0.0"}},{"$f":"Table1[[#This Row],[Business Mileage]]*0.58","v":0}]
[{"$nulls":6},{"$f":"Table1[[#This Row],[Total Mileage]]-Table1[[#This Row],[Personal Mileage]]","v":{"v":0,"d":"0.0"}},{"$f":"Table1[[#This Row],[Business Mileage]]*0.58","v":0}]
[{"$nulls":6},{"$f":"Table1[[#This Row],[Total Mileage]]-Table1[[#This Row],[Personal Mileage]]","v":{"v":0,"d":"0.0"}},{"$f":"Table1[[#This Row],[Business Mileage]]*0.58","v":0}]
[{"$nulls":6},{"$f":"Table1[[#This Row],[Total Mileage]]-Table1[[#This Row],[Personal Mileage]]","v":{"v":0,"d":"0.0"}},{"$f":"Table1[[#This Row],[Business Mileage]]*0.58","v":0}]
[{"$nulls":6},{"$f":"Table1[[#This Row],[Total Mileage]]-Table1[[#This Row],[Personal Mileage]]","v":{"v":0,"d":"0.0"}},{"$f":"Table1[[#This Row],[Business Mileage]]*0.58","v":0}]
[{"$nulls":6},{"$f":"Table1[[#This Row],[Total Mileage]]-Table1[[#This Row],[Personal Mileage]]","v":{"v":0,"d":"0.0"}},{"$f":"Table1[[#This Row],[Business Mileage]]*0.58","v":0}]
[{"$nulls":6},{"$f":"Table1[[#This Row],[Total Mileage]]-Table1[[#This Row],[Personal Mileage]]","v":{"v":0,"d":"0.0"}},{"$f":"Table1[[#This Row],[Business Mileage]]*0.58","v":0}]
[{"$nulls":6},{"$f":"Table1[[#This Row],[Total Mileage]]-Table1[[#This Row],[Personal Mileage]]","v":{"v":0,"d":"0.0"}},{"$f":"Table1[[#This Row],[Business Mileage]]*0.58","v":0}]
[{"$nulls":6},{"$f":"Table1[[#This Row],[Total Mileage]]-Table1[[#This Row],[Personal Mileage]]","v":{"v":0,"d":"0.0"}},{"$f":"Table1[[#This Row],[Business Mileage]]*0.58","v":0}]
[{"$nulls":6},{"$f":"Table1[[#This Row],[Total Mileage]]-Table1[[#This Row],[Personal Mileage]]","v":{"v":0,"d":"0.0"}},{"$f":"Table1[[#This Row],[Business Mileage]]*0.58","v":0}]
[{"$nulls":6},{"$f":"Table1[[#This Row],[Total Mileage]]-Table1[[#This Row],[Personal Mileage]]","v":{"v":0,"d":"0.0"}},{"$f":"Table1[[#This Row],[Business Mileage]]*0.58","v":0}]
[{"$nulls":6},{"$f":"Table1[[#This Row],[Total Mileage]]-Table1[[#This Row],[Personal Mileage]]","v":{"v":0,"d":"0.0"}},{"$f":"Table1[[#This Row],[Business Mileage]]*0.58","v":0}]
[{"$nulls":6},{"$f":"Table1[[#This Row],[Total Mileage]]-Table1[[#This Row],[Personal Mileage]]","v":{"v":0,"d":"0.0"}},{"$f":"Table1[[#This Row],[Business Mileage]]*0.58","v":0}]
[{"$nulls":6},{"$f":"Table1[[#This Row],[Total Mileage]]-Table1[[#This Row],[Personal Mileage]]","v":{"v":0,"d":"0.0"}},{"$f":"Table1[[#This Row],[Business Mileage]]*0.58","v":0}]
[{"$nulls":6},{"$f":"Table1[[#This Row],[Total Mileage]]-Table1[[#This Row],[Personal Mileage]]","v":{"v":0,"d":"0.0"}},{"$f":"Table1[[#This Row],[Business Mileage]]*0.58","v":0}]
[{"$nulls":6},{"$f":"Table1[[#This Row],[Total Mileage]]-Table1[[#This Row],[Personal Mileage]]","v":{"v":0,"d":"0.0"}},{"$f":"Table1[[#This Row],[Business Mileage]]*0.58","v":0}]
[{"$nulls":6},{"$f":"Table1[[#This Row],[Total Mileage]]-Table1[[#This Row],[Personal Mileage]]","v":{"v":0,"d":"0.0"}},{"$f":"Table1[[#This Row],[Business Mileage]]*0.58","v":0}]
[{"$nulls":6},{"$f":"Table1[[#This Row],[Total Mileage]]-Table1[[#This Row],[Personal Mileage]]","v":{"v":0,"d":"0.0"}},{"$f":"Table1[[#This Row],[Business Mileage]]*0.58","v":0}]
[{"$nulls":6},{"$f":"Table1[[#This Row],[Total Mileage]]-Table1[[#This Row],[Personal Mileage]]","v":{"v":0,"d":"0.0"}},{"$f":"Table1[[#This Row],[Business Mileage]]*0.58","v":0}]
[{"$nulls":6},{"$f":"Table1[[#This Row],[Total Mileage]]-Table1[[#This Row],[Personal Mileage]]","v":{"v":0,"d":"0.0"}},{"$f":"Table1[[#This Row],[Business Mileage]]*0.58","v":0}]
[{"$nulls":6},{"$f":"Table1[[#This Row],[Total Mileage]]-Table1[[#This Row],[Personal Mileage]]","v":{"v":0,"d":"0.0"}},{"$f":"Table1[[#This Row],[Business Mileage]]*0.58","v":0}]
[{"$nulls":6},{"$f":"Table1[[#This Row],[Total Mileage]]-Table1[[#This Row],[Personal Mileage]]","v":{"v":0,"d":"0.0"}},{"$f":"Table1[[#This Row],[Business Mileage]]*0.58","v":0}]
[{"$nulls":6},{"$f":"Table1[[#This Row],[Total Mileage]]-Table1[[#This Row],[Personal Mileage]]","v":{"v":0,"d":"0.0"}},{"$f":"Table1[[#This Row],[Business Mileage]]*0.58","v":0}]
[{"$nulls":6},{"$f":"Table1[[#This Row],[Total Mileage]]-Table1[[#This Row],[Personal Mileage]]","v":{"v":0,"d":"0.0"}},{"$f":"Table1[[#This Row],[Business Mileage]]*0.58","v":0}]
[{"$nulls":6},{"$f":"Table1[[#This Row],[Total Mileage]]-Table1[[#This Row],[Personal Mileage]]","v":{"v":0,"d":"0.0"}},{"$f":"Table1[[#This Row],[Business Mileage]]*0.58","v":0}]
[{"$nulls":6},{"$f":"Table1[[#This Row],[Total Mileage]]-Table1[[#This Row],[Personal Mileage]]","v":{"v":0,"d":"0.0"}},{"$f":"Table1[[#This Row],[Business Mileage]]*0.58","v":0}]
[{"$nulls":6},{"$f":"Table1[[#This Row],[Total Mileage]]-Table1[[#This Row],[Personal Mileage]]","v":{"v":0,"d":"0.0"}},{"$f":"Table1[[#This Row],[Business Mileage]]*0.58","v":0}]
[{"$nulls":6},{"$f":"Table1[[#This Row],[Total Mileage]]-Table1[[#This Row],[Personal Mileage]]","v":{"v":0,"d":"0.0"}},{"$f":"Table1[[#This Row],[Business Mileage]]*0.58","v":0}]
[{"$nulls":6},{"$f":"Table1[[#This Row],[Total Mileage]]-Table1[[#This Row],[Personal Mileage]]","v":{"v":0,"d":"0.0"}},{"$f":"Table1[[#This Row],[Business Mileage]]*0.58","v":0}]
[{"$nulls":6},{"$f":"Table1[[#This Row],[Total Mileage]]-Table1[[#This Row],[Personal Mileage]]","v":{"v":0,"d":"0.0"}},{"$f":"Table1[[#This Row],[Business Mileage]]*0.58","v":0}]
[{"$nulls":6},{"$f":"Table1[[#This Row],[Total Mileage]]-Table1[[#This Row],[Personal Mileage]]","v":{"v":0,"d":"0.0"}},{"$f":"Table1[[#This Row],[Business Mileage]]*0.58","v":0}]
[{"$nulls":6},{"$f":"Table1[[#This Row],[Total Mileage]]-Table1[[#This Row],[Personal Mileage]]","v":{"v":0,"d":"0.0"}},{"$f":"Table1[[#This Row],[Business Mileage]]*0.58","v":0}]
[{"$nulls":6},{"$f":"Table1[[#This Row],[Total Mileage]]-Table1[[#This Row],[Personal Mileage]]","v":{"v":0,"d":"0.0"}},{"$f":"Table1[[#This Row],[Business Mileage]]*0.58","v":0}]
[{"$nulls":6},{"$f":"Table1[[#This Row],[Total Mileage]]-Table1[[#This Row],[Personal Mileage]]","v":{"v":0,"d":"0.0"}},{"$f":"Table1[[#This Row],[Business Mileage]]*0.58","v":0}]
[{"$nulls":6},{"$f":"Table1[[#This Row],[Total Mileage]]-Table1[[#This Row],[Personal Mileage]]","v":{"v":0,"d":"0.0"}},{"$f":"Table1[[#This Row],[Business Mileage]]*0.58","v":0}]
[{"$nulls":6},{"$f":"Table1[[#This Row],[Total Mileage]]-Table1[[#This Row],[Personal Mileage]]","v":{"v":0,"d":"0.0"}},{"$f":"Table1[[#This Row],[Business Mileage]]*0.58","v":0}]
[{"$nulls":6},{"$f":"Table1[[#This Row],[Total Mileage]]-Table1[[#This Row],[Personal Mileage]]","v":{"v":0,"d":"0.0"}},{"$f":"Table1[[#This Row],[Business Mileage]]*0.58","v":0}]
[{"$nulls":6},{"$f":"Table1[[#This Row],[Total Mileage]]-Table1[[#This Row],[Personal Mileage]]","v":{"v":0,"d":"0.0"}},{"$f":"Table1[[#This Row],[Business Mileage]]*0.58","v":0}]
[{"$nulls":6},{"$f":"Table1[[#This Row],[Total Mileage]]-Table1[[#This Row],[Personal Mileage]]","v":{"v":0,"d":"0.0"}},{"$f":"Table1[[#This Row],[Business Mileage]]*0.58","v":0}]
[{"$nulls":6},{"$f":"Table1[[#This Row],[Total Mileage]]-Table1[[#This Row],[Personal Mileage]]","v":{"v":0,"d":"0.0"}},{"$f":"Table1[[#This Row],[Business Mileage]]*0.58","v":0}]
[{"$nulls":6},{"$f":"Table1[[#This Row],[Total Mileage]]-Table1[[#This Row],[Personal Mileage]]","v":{"v":0,"d":"0.0"}},{"$f":"Table1[[#This Row],[Business Mileage]]*0.58","v":0}]
[{"$nulls":6},{"$f":"Table1[[#This Row],[Total Mileage]]-Table1[[#This Row],[Personal Mileage]]","v":{"v":0,"d":"0.0"}},{"$f":"Table1[[#This Row],[Business Mileage]]*0.58","v":0}]
[{"$nulls":6},{"$f":"Table1[[#This Row],[Total Mileage]]-Table1[[#This Row],[Personal Mileage]]","v":{"v":0,"d":"0.0"}},{"$f":"Table1[[#This Row],[Business Mileage]]*0.58","v":0}]
[{"$nulls":6},{"$f":"Table1[[#This Row],[Total Mileage]]-Table1[[#This Row],[Personal Mileage]]","v":{"v":0,"d":"0.0"}},{"$f":"Table1[[#This Row],[Business Mileage]]*0.58","v":0}]
[{"$nulls":6},{"$f":"Table1[[#This Row],[Total Mileage]]-Table1[[#This Row],[Personal Mileage]]","v":{"v":0,"d":"0.0"}},{"$f":"Table1[[#This Row],[Business Mileage]]*0.58","v":0}]
[{"$nulls":6},{"$f":"Table1[[#This Row],[Total Mileage]]-Table1[[#This Row],[Personal Mileage]]","v":{"v":0,"d":"0.0"}},{"$f":"Table1[[#This Row],[Business Mileage]]*0.58","v":0}]
[{"$nulls":6},{"$f":"Table1[[#This Row],[Total Mileage]]-Table1[[#This Row],[Personal Mileage]]","v":{"v":0,"d":"0.0"}},{"$f":"Table1[[#This Row],[Business Mileage]]*0.58","v":0}]
[{"$nulls":6},{"$f":"Table1[[#This Row],[Total Mileage]]-Table1[[#This Row],[Personal Mileage]]","v":{"v":0,"d":"0.0"}},{"$f":"Table1[[#This Row],[Business Mileage]]*0.58","v":0}]
[{"$nulls":6},{"$f":"Table1[[#This Row],[Total Mileage]]-Table1[[#This Row],[Personal Mileage]]","v":{"v":0,"d":"0.0"}},{"$f":"Table1[[#This Row],[Business Mileage]]*0.58","v":0}]
[{"$nulls":6},{"$f":"Table1[[#This Row],[Total Mileage]]-Table1[[#This Row],[Personal Mileage]]","v":{"v":0,"d":"0.0"}},{"$f":"Table1[[#This Row],[Business Mileage]]*0.58","v":0}]
[{"$nulls":6},{"$f":"Table1[[#This Row],[Total Mileage]]-Table1[[#This Row],[Personal Mileage]]","v":{"v":0,"d":"0.0"}},{"$f":"Table1[[#This Row],[Business Mileage]]*0.58","v":0}]
[{"$nulls":6},{"$f":"Table1[[#This Row],[Total Mileage]]-Table1[[#This Row],[Personal Mileage]]","v":{"v":0,"d":"0.0"}},{"$f":"Table1[[#This Row],[Business Mileage]]*0.58","v":0}]
[{"$nulls":6},{"$f":"Table1[[#This Row],[Total Mileage]]-Table1[[#This Row],[Personal Mileage]]","v":{"v":0,"d":"0.0"}},{"$f":"Table1[[#This Row],[Business Mileage]]*0.58","v":0}]
[{"$nulls":6},{"$f":"Table1[[#This Row],[Total Mileage]]-Table1[[#This Row],[Personal Mileage]]","v":{"v":0,"d":"0.0"}},{"$f":"Table1[[#This Row],[Business Mileage]]*0.58","v":0}]
[{"$nulls":6},{"$f":"Table1[[#This Row],[Total Mileage]]-Table1[[#This Row],[Personal Mileage]]","v":{"v":0,"d":"0.0"}},{"$f":"Table1[[#This Row],[Business Mileage]]*0.58","v":0}]
[{"$nulls":6},{"$f":"Table1[[#This Row],[Total Mileage]]-Table1[[#This Row],[Personal Mileage]]","v":{"v":0,"d":"0.0"}},{"$f":"Table1[[#This Row],[Business Mileage]]*0.58","v":0}]
[{"$nulls":6},{"$f":"Table1[[#This Row],[Total Mileage]]-Table1[[#This Row],[Personal Mileage]]","v":{"v":0,"d":"0.0"}},{"$f":"Table1[[#This Row],[Business Mileage]]*0.58","v":0}]
[{"$nulls":6},{"$f":"Table1[[#This Row],[Total Mileage]]-Table1[[#This Row],[Personal Mileage]]","v":{"v":0,"d":"0.0"}},{"$f":"Table1[[#This Row],[Business Mileage]]*0.58","v":0}]
[{"$nulls":6},{"$f":"Table1[[#This Row],[Total Mileage]]-Table1[[#This Row],[Personal Mileage]]","v":{"v":0,"d":"0.0"}},{"$f":"Table1[[#This Row],[Business Mileage]]*0.58","v":0}]
[{"$nulls":6},{"$f":"Table1[[#This Row],[Total Mileage]]-Table1[[#This Row],[Personal Mileage]]","v":{"v":0,"d":"0.0"}},{"$f":"Table1[[#This Row],[Business Mileage]]*0.58","v":0}]
[{"$nulls":6},{"$f":"Table1[[#This Row],[Total Mileage]]-Table1[[#This Row],[Personal Mileage]]","v":{"v":0,"d":"0.0"}},{"$f":"Table1[[#This Row],[Business Mileage]]*0.58","v":0}]
[{"$nulls":6},{"$f":"Table1[[#This Row],[Total Mileage]]-Table1[[#This Row],[Personal Mileage]]","v":{"v":0,"d":"0.0"}},{"$f":"Table1[[#This Row],[Business Mileage]]*0.58","v":0}]
[{"$nulls":6},{"$f":"Table1[[#This Row],[Total Mileage]]-Table1[[#This Row],[Personal Mileage]]","v":{"v":0,"d":"0.0"}},{"$f":"Table1[[#This Row],[Business Mileage]]*0.58","v":0}]
[{"$nulls":6},{"$f":"Table1[[#This Row],[Total Mileage]]-Table1[[#This Row],[Personal Mileage]]","v":{"v":0,"d":"0.0"}},{"$f":"Table1[[#This Row],[Business Mileage]]*0.58","v":0}]
[{"$nulls":6},{"$f":"Table1[[#This Row],[Total Mileage]]-Table1[[#This Row],[Personal Mileage]]","v":{"v":0,"d":"0.0"}},{"$f":"Table1[[#This Row],[Business Mileage]]*0.58","v":0}]
[{"$nulls":6},{"$f":"Table1[[#This Row],[Total Mileage]]-Table1[[#This Row],[Personal Mileage]]","v":{"v":0,"d":"0.0"}},{"$f":"Table1[[#This Row],[Business Mileage]]*0.58","v":0}]
[{"$nulls":6},{"$f":"Table1[[#This Row],[Total Mileage]]-Table1[[#This Row],[Personal Mileage]]","v":{"v":0,"d":"0.0"}},{"$f":"Table1[[#This Row],[Business Mileage]]*0.58","v":0}]
[{"$nulls":6},{"$f":"Table1[[#This Row],[Total Mileage]]-Table1[[#This Row],[Personal Mileage]]","v":{"v":0,"d":"0.0"}},{"$f":"Table1[[#This Row],[Business Mileage]]*0.58","v":0}]
[{"$nulls":6},{"$f":"Table1[[#This Row],[Total Mileage]]-Table1[[#This Row],[Personal Mileage]]","v":{"v":0,"d":"0.0"}},{"$f":"Table1[[#This Row],[Business Mileage]]*0.58","v":0}]
[{"$nulls":6},{"$f":"Table1[[#This Row],[Total Mileage]]-Table1[[#This Row],[Personal Mileage]]","v":{"v":0,"d":"0.0"}},{"$f":"Table1[[#This Row],[Business Mileage]]*0.58","v":0}]
[{"$nulls":6},{"$f":"Table1[[#This Row],[Total Mileage]]-Table1[[#This Row],[Personal Mileage]]","v":{"v":0,"d":"0.0"}},{"$f":"Table1[[#This Row],[Business Mileage]]*0.58","v":0}]
[{"$nulls":6},{"$f":"Table1[[#This Row],[Total Mileage]]-Table1[[#This Row],[Personal Mileage]]","v":{"v":0,"d":"0.0"}},{"$f":"Table1[[#This Row],[Business Mileage]]*0.58","v":0}]
[{"$nulls":6},{"$f":"Table1[[#This Row],[Total Mileage]]-Table1[[#This Row],[Personal Mileage]]","v":{"v":0,"d":"0.0"}},{"$f":"Table1[[#This Row],[Business Mileage]]*0.58","v":0}]
[{"$nulls":6},{"$f":"Table1[[#This Row],[Total Mileage]]-Table1[[#This Row],[Personal Mileage]]","v":{"v":0,"d":"0.0"}},{"$f":"Table1[[#This Row],[Business Mileage]]*0.58","v":0}]
[{"$nulls":6},{"$f":"Table1[[#This Row],[Total Mileage]]-Table1[[#This Row],[Personal Mileage]]","v":{"v":0,"d":"0.0"}},{"$f":"Table1[[#This Row],[Business Mileage]]*0.58","v":0}]
[{"$nulls":6},{"$f":"Table1[[#This Row],[Total Mileage]]-Table1[[#This Row],[Personal Mileage]]","v":{"v":0,"d":"0.0"}},{"$f":"Table1[[#This Row],[Business Mileage]]*0.58","v":0}]
[{"$nulls":6},{"$f":"Table1[[#This Row],[Total Mileage]]-Table1[[#This Row],[Personal Mileage]]","v":{"v":0,"d":"0.0"}},{"$f":"Table1[[#This Row],[Business Mileage]]*0.58","v":0}]
[{"$nulls":6},{"$f":"Table1[[#This Row],[Total Mileage]]-Table1[[#This Row],[Personal Mileage]]","v":{"v":0,"d":"0.0"}},{"$f":"Table1[[#This Row],[Business Mileage]]*0.58","v":0}]
[{"$nulls":6},{"$f":"Table1[[#This Row],[Total Mileage]]-Table1[[#This Row],[Personal Mileage]]","v":{"v":0,"d":"0.0"}},{"$f":"Table1[[#This Row],[Business Mileage]]*0.58","v":0}]
[{"$nulls":6},{"$f":"Table1[[#This Row],[Total Mileage]]-Table1[[#This Row],[Personal Mileage]]","v":{"v":0,"d":"0.0"}},{"$f":"Table1[[#This Row],[Business Mileage]]*0.58","v":0}]
[{"$nulls":6},{"$f":"Table1[[#This Row],[Total Mileage]]-Table1[[#This Row],[Personal Mileage]]","v":{"v":0,"d":"0.0"}},{"$f":"Table1[[#This Row],[Business Mileage]]*0.58","v":0}]
[{"$nulls":6},{"$f":"Table1[[#This Row],[Total Mileage]]-Table1[[#This Row],[Personal Mileage]]","v":{"v":0,"d":"0.0"}},{"$f":"Table1[[#This Row],[Business Mileage]]*0.58","v":0}]
[{"$nulls":6},{"$f":"Table1[[#This Row],[Total Mileage]]-Table1[[#This Row],[Personal Mileage]]","v":{"v":0,"d":"0.0"}},{"$f":"Table1[[#This Row],[Business Mileage]]*0.58","v":0}]
[{"$nulls":6},{"$f":"Table1[[#This Row],[Total Mileage]]-Table1[[#This Row],[Personal Mileage]]","v":{"v":0,"d":"0.0"}},{"$f":"Table1[[#This Row],[Business Mileage]]*0.58","v":0}]
[{"$nulls":6},{"$f":"Table1[[#This Row],[Total Mileage]]-Table1[[#This Row],[Personal Mileage]]","v":{"v":0,"d":"0.0"}},{"$f":"Table1[[#This Row],[Business Mileage]]*0.58","v":0}]
[{"$nulls":6},{"$f":"Table1[[#This Row],[Total Mileage]]-Table1[[#This Row],[Personal Mileage]]","v":{"v":0,"d":"0.0"}},{"$f":"Table1[[#This Row],[Business Mileage]]*0.58","v":0}]
[{"$nulls":6},{"$f":"Table1[[#This Row],[Total Mileage]]-Table1[[#This Row],[Personal Mileage]]","v":{"v":0,"d":"0.0"}},{"$f":"Table1[[#This Row],[Business Mileage]]*0.58","v":0}]
[{"$nulls":6},{"$f":"Table1[[#This Row],[Total Mileage]]-Table1[[#This Row],[Personal Mileage]]","v":{"v":0,"d":"0.0"}},{"$f":"Table1[[#This Row],[Business Mileage]]*0.58","v":0}]
[{"$nulls":6},{"$f":"Table1[[#This Row],[Total Mileage]]-Table1[[#This Row],[Personal Mileage]]","v":{"v":0,"d":"0.0"}},{"$f":"Table1[[#This Row],[Business Mileage]]*0.58","v":0}]
[{"$nulls":6},{"$f":"Table1[[#This Row],[Total Mileage]]-Table1[[#This Row],[Personal Mileage]]","v":{"v":0,"d":"0.0"}},{"$f":"Table1[[#This Row],[Business Mileage]]*0.58","v":0}]
[{"$nulls":6},{"$f":"Table1[[#This Row],[Total Mileage]]-Table1[[#This Row],[Personal Mileage]]","v":{"v":0,"d":"0.0"}},{"$f":"Table1[[#This Row],[Business Mileage]]*0.58","v":0}]
[{"$nulls":6},{"$f":"Table1[[#This Row],[Total Mileage]]-Table1[[#This Row],[Personal Mileage]]","v":{"v":0,"d":"0.0"}},{"$f":"Table1[[#This Row],[Business Mileage]]*0.58","v":0}]
[{"$nulls":6},{"$f":"Table1[[#This Row],[Total Mileage]]-Table1[[#This Row],[Personal Mileage]]","v":{"v":0,"d":"0.0"}},{"$f":"Table1[[#This Row],[Business Mileage]]*0.58","v":0}]
[{"$nulls":6},{"$f":"Table1[[#This Row],[Total Mileage]]-Table1[[#This Row],[Personal Mileage]]","v":{"v":0,"d":"0.0"}},{"$f":"Table1[[#This Row],[Business Mileage]]*0.58","v":0}]
[{"$nulls":6},{"$f":"Table1[[#This Row],[Total Mileage]]-Table1[[#This Row],[Personal Mileage]]","v":{"v":0,"d":"0.0"}},{"$f":"Table1[[#This Row],[Business Mileage]]*0.58","v":0}]
[{"$nulls":6},{"$f":"Table1[[#This Row],[Total Mileage]]-Table1[[#This Row],[Personal Mileage]]","v":{"v":0,"d":"0.0"}},{"$f":"Table1[[#This Row],[Business Mileage]]*0.58","v":0}]
[{"$nulls":6},{"$f":"Table1[[#This Row],[Total Mileage]]-Table1[[#This Row],[Personal Mileage]]","v":{"v":0,"d":"0.0"}},{"$f":"Table1[[#This Row],[Business Mileage]]*0.58","v":0}]
[{"$nulls":6},{"$f":"Table1[[#This Row],[Total Mileage]]-Table1[[#This Row],[Personal Mileage]]","v":{"v":0,"d":"0.0"}},{"$f":"Table1[[#This Row],[Business Mileage]]*0.58","v":0}]
[{"$nulls":6},{"$f":"Table1[[#This Row],[Total Mileage]]-Table1[[#This Row],[Personal Mileage]]","v":{"v":0,"d":"0.0"}},{"$f":"Table1[[#This Row],[Business Mileage]]*0.58","v":0}]
[{"$nulls":6},{"$f":"Table1[[#This Row],[Total Mileage]]-Table1[[#This Row],[Personal Mileage]]","v":{"v":0,"d":"0.0"}},{"$f":"Table1[[#This Row],[Business Mileage]]*0.58","v":0}]
[{"$nulls":6},{"$f":"Table1[[#This Row],[Total Mileage]]-Table1[[#This Row],[Personal Mileage]]","v":{"v":0,"d":"0.0"}},{"$f":"Table1[[#This Row],[Business Mileage]]*0.58","v":0}]
[{"$nulls":6},{"$f":"Table1[[#This Row],[Total Mileage]]-Table1[[#This Row],[Personal Mileage]]","v":{"v":0,"d":"0.0"}},{"$f":"Table1[[#This Row],[Business Mileage]]*0.58","v":0}]
[{"$nulls":6},{"$f":"Table1[[#This Row],[Total Mileage]]-Table1[[#This Row],[Personal Mileage]]","v":{"v":0,"d":"0.0"}},{"$f":"Table1[[#This Row],[Business Mileage]]*0.58","v":0}]
[{"$nulls":6},{"$f":"Table1[[#This Row],[Total Mileage]]-Table1[[#This Row],[Personal Mileage]]","v":{"v":0,"d":"0.0"}},{"$f":"Table1[[#This Row],[Business Mileage]]*0.58","v":0}]
[{"$nulls":6},{"$f":"Table1[[#This Row],[Total Mileage]]-Table1[[#This Row],[Personal Mileage]]","v":{"v":0,"d":"0.0"}},{"$f":"Table1[[#This Row],[Business Mileage]]*0.58","v":0}]
[{"$nulls":6},{"$f":"Table1[[#This Row],[Total Mileage]]-Table1[[#This Row],[Personal Mileage]]","v":{"v":0,"d":"0.0"}},{"$f":"Table1[[#This Row],[Business Mileage]]*0.58","v":0}]
[{"$nulls":6},{"$f":"Table1[[#This Row],[Total Mileage]]-Table1[[#This Row],[Personal Mileage]]","v":{"v":0,"d":"0.0"}},{"$f":"Table1[[#This Row],[Business Mileage]]*0.58","v":0}]
[{"$nulls":6},{"$f":"Table1[[#This Row],[Total Mileage]]-Table1[[#This Row],[Personal Mileage]]","v":{"v":0,"d":"0.0"}},{"$f":"Table1[[#This Row],[Business Mileage]]*0.58","v":0}]
[{"$nulls":6},{"$f":"Table1[[#This Row],[Total Mileage]]-Table1[[#This Row],[Personal Mileage]]","v":{"v":0,"d":"0.0"}},{"$f":"Table1[[#This Row],[Business Mileage]]*0.58","v":0}]
[{"$nulls":6},{"$f":"Table1[[#This Row],[Total Mileage]]-Table1[[#This Row],[Personal Mileage]]","v":{"v":0,"d":"0.0"}},{"$f":"Table1[[#This Row],[Business Mileage]]*0.58","v":0}]
[{"$nulls":6},{"$f":"Table1[[#This Row],[Total Mileage]]-Table1[[#This Row],[Personal Mileage]]","v":{"v":0,"d":"0.0"}},{"$f":"Table1[[#This Row],[Business Mileage]]*0.58","v":0}]
[{"$nulls":6},{"$f":"Table1[[#This Row],[Total Mileage]]-Table1[[#This Row],[Personal Mileage]]","v":{"v":0,"d":"0.0"}},{"$f":"Table1[[#This Row],[Business Mileage]]*0.58","v":0}]
[{"$nulls":6},{"$f":"Table1[[#This Row],[Total Mileage]]-Table1[[#This Row],[Personal Mileage]]","v":{"v":0,"d":"0.0"}},{"$f":"Table1[[#This Row],[Business Mileage]]*0.58","v":0}]
[{"$nulls":6},{"$f":"Table1[[#This Row],[Total Mileage]]-Table1[[#This Row],[Personal Mileage]]","v":{"v":0,"d":"0.0"}},{"$f":"Table1[[#This Row],[Business Mileage]]*0.58","v":0}]
[{"$nulls":6},{"$f":"Table1[[#This Row],[Total Mileage]]-Table1[[#This Row],[Personal Mileage]]","v":{"v":0,"d":"0.0"}},{"$f":"Table1[[#This Row],[Business Mileage]]*0.58","v":0}]
[{"$nulls":6},{"$f":"Table1[[#This Row],[Total Mileage]]-Table1[[#This Row],[Personal Mileage]]","v":{"v":0,"d":"0.0"}},{"$f":"Table1[[#This Row],[Business Mileage]]*0.58","v":0}]
[{"$nulls":6},{"$f":"Table1[[#This Row],[Total Mileage]]-Table1[[#This Row],[Personal Mileage]]","v":{"v":0,"d":"0.0"}},{"$f":"Table1[[#This Row],[Business Mileage]]*0.58","v":0}]
[{"$nulls":6},{"$f":"Table1[[#This Row],[Total Mileage]]-Table1[[#This Row],[Personal Mileage]]","v":{"v":0,"d":"0.0"}},{"$f":"Table1[[#This Row],[Business Mileage]]*0.58","v":0}]
[{"$nulls":6},{"$f":"Table1[[#This Row],[Total Mileage]]-Table1[[#This Row],[Personal Mileage]]","v":{"v":0,"d":"0.0"}},{"$f":"Table1[[#This Row],[Business Mileage]]*0.58","v":0}]
[{"$nulls":6},{"$f":"Table1[[#This Row],[Total Mileage]]-Table1[[#This Row],[Personal Mileage]]","v":{"v":0,"d":"0.0"}},{"$f":"Table1[[#This Row],[Business Mileage]]*0.58","v":0}]
[{"$nulls":6},{"$f":"Table1[[#This Row],[Total Mileage]]-Table1[[#This Row],[Personal Mileage]]","v":{"v":0,"d":"0.0"}},{"$f":"Table1[[#This Row],[Business Mileage]]*0.58","v":0}]
[{"$nulls":6},{"$f":"Table1[[#This Row],[Total Mileage]]-Table1[[#This Row],[Personal Mileage]]","v":{"v":0,"d":"0.0"}},{"$f":"Table1[[#This Row],[Business Mileage]]*0.58","v":0}]
[{"$nulls":6},{"$f":"Table1[[#This Row],[Total Mileage]]-Table1[[#This Row],[Personal Mileage]]","v":{"v":0,"d":"0.0"}},{"$f":"Table1[[#This Row],[Business Mileage]]*0.58","v":0}]
[{"$nulls":6},{"$f":"Table1[[#This Row],[Total Mileage]]-Table1[[#This Row],[Personal Mileage]]","v":{"v":0,"d":"0.0"}},{"$f":"Table1[[#This Row],[Business Mileage]]*0.58","v":0}]
[{"$nulls":6},{"$f":"Table1[[#This Row],[Total Mileage]]-Table1[[#This Row],[Personal Mileage]]","v":{"v":0,"d":"0.0"}},{"$f":"Table1[[#This Row],[Business Mileage]]*0.58","v":0}]
[{"$nulls":6},{"$f":"Table1[[#This Row],[Total Mileage]]-Table1[[#This Row],[Personal Mileage]]","v":{"v":0,"d":"0.0"}},{"$f":"Table1[[#This Row],[Business Mileage]]*0.58","v":0}]
[{"$nulls":6},{"$f":"Table1[[#This Row],[Total Mileage]]-Table1[[#This Row],[Personal Mileage]]","v":{"v":0,"d":"0.0"}},{"$f":"Table1[[#This Row],[Business Mileage]]*0.58","v":0}]
[{"$nulls":6},{"$f":"Table1[[#This Row],[Total Mileage]]-Table1[[#This Row],[Personal Mileage]]","v":{"v":0,"d":"0.0"}},{"$f":"Table1[[#This Row],[Business Mileage]]*0.58","v":0}]
[{"$nulls":6},{"$f":"Table1[[#This Row],[Total Mileage]]-Table1[[#This Row],[Personal Mileage]]","v":{"v":0,"d":"0.0"}},{"$f":"Table1[[#This Row],[Business Mileage]]*0.58","v":0}]
[{"$nulls":6},{"$f":"Table1[[#This Row],[Total Mileage]]-Table1[[#This Row],[Personal Mileage]]","v":{"v":0,"d":"0.0"}},{"$f":"Table1[[#This Row],[Business Mileage]]*0.58","v":0}]
[{"$nulls":6},{"$f":"Table1[[#This Row],[Total Mileage]]-Table1[[#This Row],[Personal Mileage]]","v":{"v":0,"d":"0.0"}},{"$f":"Table1[[#This Row],[Business Mileage]]*0.58","v":0}]
[{"$nulls":6},{"$f":"Table1[[#This Row],[Total Mileage]]-Table1[[#This Row],[Personal Mileage]]","v":{"v":0,"d":"0.0"}},{"$f":"Table1[[#This Row],[Business Mileage]]*0.58","v":0}]
[{"$nulls":6},{"$f":"Table1[[#This Row],[Total Mileage]]-Table1[[#This Row],[Personal Mileage]]","v":{"v":0,"d":"0.0"}},{"$f":"Table1[[#This Row],[Business Mileage]]*0.58","v":0}]
[{"$nulls":6},{"$f":"Table1[[#This Row],[Total Mileage]]-Table1[[#This Row],[Personal Mileage]]","v":{"v":0,"d":"0.0"}},{"$f":"Table1[[#This Row],[Business Mileage]]*0.58","v":0}]
[{"$nulls":6},{"$f":"Table1[[#This Row],[Total Mileage]]-Table1[[#This Row],[Personal Mileage]]","v":{"v":0,"d":"0.0"}},{"$f":"Table1[[#This Row],[Business Mileage]]*0.58","v":0}]
[{"$nulls":6},{"$f":"Table1[[#This Row],[Total Mileage]]-Table1[[#This Row],[Personal Mileage]]","v":{"v":0,"d":"0.0"}},{"$f":"Table1[[#This Row],[Business Mileage]]*0.58","v":0}]
[{"$nulls":6},{"$f":"Table1[[#This Row],[Total Mileage]]-Table1[[#This Row],[Personal Mileage]]","v":{"v":0,"d":"0.0"}},{"$f":"Table1[[#This Row],[Business Mileage]]*0.58","v":0}]
[{"$nulls":6},{"$f":"Table1[[#This Row],[Total Mileage]]-Table1[[#This Row],[Personal Mileage]]","v":{"v":0,"d":"0.0"}},{"$f":"Table1[[#This Row],[Business Mileage]]*0.58","v":0}]
[{"$nulls":6},{"$f":"Table1[[#This Row],[Total Mileage]]-Table1[[#This Row],[Personal Mileage]]","v":{"v":0,"d":"0.0"}},{"$f":"Table1[[#This Row],[Business Mileage]]*0.58","v":0}]
[{"$nulls":6},{"$f":"Table1[[#This Row],[Total Mileage]]-Table1[[#This Row],[Personal Mileage]]","v":{"v":0,"d":"0.0"}},{"$f":"Table1[[#This Row],[Business Mileage]]*0.58","v":0}]
[{"$nulls":6},{"$f":"Table1[[#This Row],[Total Mileage]]-Table1[[#This Row],[Personal Mileage]]","v":{"v":0,"d":"0.0"}},{"$f":"Table1[[#This Row],[Business Mileage]]*0.58","v":0}]
[{"$nulls":6},{"$f":"Table1[[#This Row],[Total Mileage]]-Table1[[#This Row],[Personal Mileage]]","v":{"v":0,"d":"0.0"}},{"$f":"Table1[[#This Row],[Business Mileage]]*0.58","v":0}]
[{"$nulls":6},{"$f":"Table1[[#This Row],[Total Mileage]]-Table1[[#This Row],[Personal Mileage]]","v":{"v":0,"d":"0.0"}},{"$f":"Table1[[#This Row],[Business Mileage]]*0.58","v":0}]
[{"$nulls":6},{"$f":"Table1[[#This Row],[Total Mileage]]-Table1[[#This Row],[Personal Mileage]]","v":{"v":0,"d":"0.0"}},{"$f":"Table1[[#This Row],[Business Mileage]]*0.58","v":0}]
[{"$nulls":6},{"$f":"Table1[[#This Row],[Total Mileage]]-Table1[[#This Row],[Personal Mileage]]","v":{"v":0,"d":"0.0"}},{"$f":"Table1[[#This Row],[Business Mileage]]*0.58","v":0}]